Workbook

Sheet 1st Advance Payment
A1: STATE OF CALIFORNIA | J1: Purchase Authority | L1: BSCC 5229
A2: BOARD OF STATE AND COMMUNITY CORRECTIONS | J2: Purchase Order: | L2: 5227-0000003918
A3: Advance Payment Invoice: BSCC 201A (Revised 06/2020)
B6: Program: | C6: Public Defense Pilot Program Grant | H6: Grantee: | I6: County of Fresno
B8: Contract #: | C8: BSCC 323-21 | H8: Address | I8: 2281 Tulare Street, Room 304
J9: Address Line 1
B10: Term: | C10: 2022-03-01 | D10: TO | E10: 2025-03-01 | I10: Fresno, CA 93721
J11: Address Line 2
B13: Advance Payment # | C13: 1 PDPP 21 - ADV PMT | G13: Please Note: The California State Controller's Office will send all checks directly to the address listed in the "BSCC Vendor Data" section at the bottom of this invoice.
B15: Effective Invoice # | C15: 2022-05-23
A18: Advance Payment Invoice
J19: Total Grant Award: | K19: 1204165
J20: Advance Total: | K20: 1204165
J21: Grant Award Balance: | K21: 0
F29: BSCC USE ONLY
B31: Approved By: | C31: Dameion Renault, 5/24/2022 | J31: BSCC Supplier Data
C32: BSCC Field Representative | I32: ='[1]INVOICE 12'!L54 -> COUNTYOFFR-006
J33: Supplier Name
B34: Date: | C34: 2022-05-24 | I34: ='[1]INVOICE 12'!L52 -> 00000014996
J35: Supplier Number

Sheet Bud. Mod. 1
M1: STATE OF CALIFORNIA
A2: MODIFICATION REQUEST - (FORM BSCC 223.1 (Revised 1/23) | M2: BOARD OF STATE AND COMMUNITY CORRECTIONS
A5: Please mark an "X" in the green cell to indicate which type of budget modification you want to select.
A7: X | B7: Line-Item Change | F7: Budget Modification | J7: Project Income Allocation
B8: Select this option if you are modifying narrative details within a line item (or line items) but not changing the budget. | F8: Select ths option if you are modifying line-item dollar amounts by moving funds from one line-item to another. | J8: Select this option if you are allocating earned project income.
A10: Important Note: You must provide a detailed justification for all modification requests. All modifications require BSCC Field Representative approval.
A12: Grantee: | B12: ='[1]INVOICE 12'!B7 -> County of Fresno | I12: Program: | J12: ='[1]INVOICE 1'!B5 -> Public Defense Pilot Program
A14: Address | B14: ='[1]INVOICE 1'!L56 -> 2281 Tulare Street, Room 304 | I14: Project Title:
B16: ='[1]INVOICE 1'!L58 -> Fresno, CA 93721
A18: Contract #: | B18: ='[1]INVOICE 12'!B9 -> BSCC 323-21 | J18: Modification Request # | K18: 1
A20: Term: | B20: ='[1]INVOICE 1'!E9 -> 2022-03-01 | C20: ='[1]INVOICE 1'!F9 -> TO | D20: ='[1]INVOICE 1'!G9 -> 2025-03-01 | J20: Effective on Invoice # | K20: 1
A22: Line Items | B22: Current Budget | E22: Available Budget | H22: Changes (+/-) | K22: Modified Budget
B23: Grant Funds | C23: Project Income | D23: TOTAL | E23: Grant Funds | F23: Project Income | G23: TOTAL | H23: Grant Funds | I23: Project Income | J23: TOTAL | K23: Grant Funds | L23: Project Income | M23: TOTAL
A24: Salaries & Benefits | B24: 959060 | C24: 0 | D24: 959060 | E24: 959060 | F24: 0 | G24: 959060 | I24: 0 | J24: 0 | K24: 959060 | L24: 0 | M24: 959060
A25: Services & Supplies | B25: 17470.38 | C25: 0 | D25: 17470.38 | E25: 17470.38 | F25: 0 | G25: 17470.38 | I25: 0 | J25: 0 | K25: 17470.38 | L25: 0 | M25: 17470.38
A26: Professional Services or Public Agency Subcontracts | B26: 126282.28 | C26: 0 | D26: 126282.28 | E26: 126282.28 | F26: 0 | G26: 126282.28 | H26: 0 | I26: 0 | J26: 0 | K26: 126282.28 | L26: 0 | M26: 126282.28
A27: NGO Subcontracts | B27: 0 | C27: 0 | D27: 0 | E27: 0 | F27: 0 | G27: 0 | H27: 0 | I27: 0 | J27: 0 | K27: 0 | L27: 0 | M27: 0
A28: Equipment / Fixed Assets | B28: 0 | C28: 0 | D28: 0 | E28: 0 | F28: 0 | G28: 0 | H28: 0 | I28: 0 | J28: 0 | K28: 0 | L28: 0 | M28: 0
A29: Other (Travel, Training, etc.) | B29: 3200 | C29: 0 | D29: 3200 | E29: 3200 | F29: 0 | G29: 3200 | H29: 0 | I29: 0 | J29: 0 | K29: 3200 | L29: 0 | M29: 3200
A30: Indirect Costs | B30: 98152.34 | C30: 0 | D30: 98152.34 | E30: 98152.34 | F30: 0 | G30: 98152.34 | H30: 0 | I30: 0 | J30: 0 | K30: 98152.34 | L30: 0 | M30: 98152.34
A31: TOTAL | B31: 1204165 | C31: 0 | D31: 1204165 | E31: =SUM(E24:E30) -> 1204165 | F31: 0 | G31: =SUM(G24:G30) -> 1204165 | H31: 0 | I31: 0 | J31: 0 | K31: 1204165 | L31: 0 | M31: 1204165
A33: Project Income | C33: Income reported to date | D33: ='[1]INVOICE 12'!D25 -> 0 | F33: Prior allocated income | G33: ='[1]INVOICE 12'!G25 -> 0 | H33: Allocating | I33: =I31 -> 0 | L33: Unallocated income balance | M33: =D33-I33 -> 0
A35: JUSTIFICATION FOR MODIFICATION:
A36: The Public Defender requests to modify 1a. Salaries and Benefits Name and Title regarding the Defense Attorney positions. Previously the positions were budgeted for (2) Defense Attorney IV and (1) Defense Attorney III. After several months of active recruiting, the Public Defender was unable to hire any new employees and has reassigned existing staff into the grant positions. The existing attorneys with the requisite knowledge to best address the given statutes are (2) Senior Defense Attorney and (1) Defense Attorney III that is eligible for promotion to Defense Attorney IV in January 2023. We request a modification to the original budget to list 3 FTE Defense Attorneys, given that the budgeted amounts are unchanged. Due to the length of vacancies, additional funding is not needed to account for the higher salaries. Please make all requested modifications effective beginning on Invoice #1.
A55: PERSON PREPARING REPORT | I55: AUTHORIZED FINANCIAL OFFICER
I56: I hereby certify that I am the authorized financial officer of the herein named agency. I further certify that I have not violated any of the provisions of Section 1090 of the Government Code in incurring the expenditures reported in this invoice, nor in any other way; that Sections 1090 through 1096 of the Government Code will not be violated in any way in the expenditure of funds pursuant to this invoice; that statement of funds above is true, correct, and in accordance with program provisions in all respects; and that all expenditures submitted after the expiration date of this contract are for the purpose of substantiating obligations legally incurred during the contract period. Furthermore, by submitting this invoice, I acknowledge that it must adhere to all of the requirements in the BSCC Grant Administration Guide, including any updates to the Guide during the term of the grant agreement.
A57: Salvador Espino, Senior Administrative Analyst
A58: Name, Title
A59: 559-600-1228
A60: Phone
A61: sespino@fresnocountyca.gov
A62: Email
A63: 2022-12-23
A64: Date
I66: Greg Reinke, Assistant County Administrative Officer
I67: Name, Title
I68: 559-600-1225
I69: Phone
I70: 2022-12-23
I71: Date
A73: BSCC USE ONLY
A74: Date Received: | C74: 2022-12-23 | H74: Approved By: | I74: Dameion Renault | L74: Date: | M74: 2023-01-12
I75: BSCC Field Representative

Sheet INVOICE 1
A1: STATE OF CALIFORNIA | L1: Purchase Authority | N1: BSCC 5227
A2: BOARD OF STATE AND COMMUNITY CORRECTIONS | L2: Purchase Order: | N2: 5227-0000003918
A3: Financial Invoice Form: BSCC 201 (Revised 01/2023)
A5: Program: | B5: Public Defense Pilot Program | K5: Please Note: The California State Controller's Office will send all checks directly to the address listed in the "BSCC Vendor Data" section at the bottom of this invoice.
A7: Grantee: | B7: County of Fresno | F7: Project Title:
A9: Contract #: | B9: BSCC 323-21 | D9: Term: | E9: 2022-03-01 | F9: TO | G9: 2025-03-01 | L9: Invoicing Frequency | M9: Quarterly
A11: Invoice #: | B11: 1 PDPP 21 | D11: Reporting Period: | E11: 2022-03-01 | F11: TO | G11: 2022-06-30 | H11: Due: | I11: 2022-08-15 | L11: Final Invoice (Y/N): | M11: No
A13: Line Items | B13: Budget | E13: Prior Expenditures | H13: This Reporting Period | K13: Balance | N13: Advance Disbursements
B14: Grant Funds | C14: Project Income | D14: TOTAL | E14: Grant Funds | F14: Project Income | G14: TOTAL | H14: Grant Funds | I14: Project Income | J14: TOTAL | K14: Grant Funds | L14: Project Income | M14: TOTAL
A15: Salaries & Benefits | B15: 959060 | C15: 0 | D15: =SUM(B15:C15) -> 959060 | F15: 0 | G15: =SUM(E15:F15) -> 0 | H15: 27220 | I15: 0 | J15: =SUM(H15:I15) -> 27220 | K15: =B15-E15-H15 -> 931840 | L15: =C15-F15-I15 -> 0 | M15: =SUM(K15:L15) -> 931840 | N15: 1st Advance 5/23/2022
A16: Services & Supplies | B16: 17470.38 | C16: 0 | D16: 17470.38 | E16: 0 | F16: 0 | G16: =SUM(E16:F16) -> 0 | H16: 0 | I16: 0 | J16: 0 | K16: 17470.38 | L16: 0 | M16: 17470.38 | N16: ='1st Advance Payment'!K20 -> 1204165
A17: Professional Services or Public Agency Subcontract | B17: 126282.28 | C17: 0 | D17: 126282.28 | E17: 0 | F17: 0 | G17: =SUM(E17:F17) -> 0 | H17: 0 | I17: 0 | J17: 0 | K17: 126282.28 | L17: 0 | M17: 126282.28
A18: NGO Subcontracts | B18: 0 | C18: 0 | D18: 0 | E18: 0 | F18: 0 | G18: 0 | H18: 0 | I18: 0 | J18: 0 | K18: 0 | L18: 0 | M18: 0
A19: Equipment / Fixed Assets | B19: 0 | C19: 0 | D19: 0 | E19: 0 | F19: 0 | G19: 0 | H19: 0 | I19: 0 | J19: 0 | K19: 0 | L19: 0 | M19: 0
A20: Other | B20: 3200 | C20: 0 | D20: =SUM(B20:C20) -> 3200 | E20: 0 | F20: 0 | G20: 0 | H20: 0 | I20: 0 | J20: 0 | K20: 3200 | L20: 0 | M20: 3200
A21: Indirect Costs | B21: 98152.34 | C21: 0 | D21: 98152.34 | E21: 0 | F21: 0 | G21: 0 | H21: 2722 | I21: 0 | J21: 2722 | K21: 95430.34 | L21: 0 | M21: 95430.34
A22: TOTAL | B22: =SUM(B15:B21) -> 1204165 | C22: =SUM(C15:C21) -> 0 | D22: =SUM(D15:D21) -> 1204165 | E22: =SUM(E15:E21) -> 0 | F22: 0 | G22: 0 | H22: 29942 | I22: =SUM(I15:I21) -> 0 | J22: 29942 | K22: 1174223 | L22: 0 | M22: 1174223 | N22: =SUM(N16+N19+N20) -> 1204165
A24: Project Income | C24: Income reported to date | D24: 0 | F24: Prior allocated income | G24: 0 | H24: This Period | L24: Unallocated income balance | M24: =D24-G24 -> 0
A25: 0
C26: Grant funds expended to date: | D26: =SUM(E22,H22) -> 29942 | G26: Grant funds claimed this period: | H26: =H22 -> 29942 | L26: Percentage Grant $$ expended to date: | M26: Percentage Grant $$ expended to date: | N26: =E26/C22 -> 
D31: Expenditure Descriptions - Units / $ Amounts | L31: Comments
A32: Salaries & Benefits | B32: Grant Funds | C32: =H15 -> 27220 | D32: Defense Attorney III FTE = $46.5625/hour x 200 hours =$9312.50+ $6402.34 benefits = $15,714.84; Senior Defense Attorney 0.2 FTE $67.2125/hr x 99 hours = $6,654.04 + $4851 benefits = $11,505.04
B33: Match | C33: =I15 -> 0
A34: Services & Supplies | B34: Grant Funds | C34: =H16 -> 0
B35: Match | C35: =I16 -> 0
A36: Professional Services or Public Agency Subcontracts | B36: Grant Funds | C36: =H17 -> 0
B37: Match | C37: =I17 -> 0
A38: NGO Subcontracts | B38: Grant Funds | C38: =H18 -> 0
B39: Match | C39: =I18 -> 0
A40: Equipment / Fixed Assets | B40: Grant Funds | C40: =H19 -> 0
B41: Match | C41: =I19 -> 0
A42: Other | B42: Grant Funds | C42: =H20 -> 0
B43: Match | C43: =I20 -> 0
A44: Indirect Costs | B44: Grant Funds | C44: =H21 -> 2722 | D44: Minimum given by grant allowance to cover indirect costs such as administrative time, office space, etc.
B45: Match | C45: =I21 -> 0
A46: Project Income | C46: =I24 -> 0
A47: PERSON PREPARING REPORT | E47: AUTHORIZED FINANCIAL OFFICER | L47: BSCC Supplier Data - Internal Use Only
E48: By checking the box below, I hereby certify that I am the authorized financial officer of the herein named agency. I further certify that I have not violated any of the provisions of Section 1090 of the Government Code in incurring the expenditures reported in this invoice, nor in any other way; that Sections 1090 through 1096 of the Government Code will not be violated in any way in the expenditure of funds pursuant to this invoice; that statement of funds above is true, correct, and in accordance with program provisions in all respects; and that all expenditures submitted after the expiration date of this contract are for the purpose of substantiating obligations legally incurred during the contract period. Furthermore, by submitting this invoice, I acknowledge that it must adhere to all of the requirements in the BSCC Grant Administration Guide, including any updates to the Guide during the term of the grant agreement.
A49: Salvador Espino, Senior Administrative Analyst | L49: 00000014996
A50: Name, Title | L50: Supplier ID
A51: 559-600-1228 | L51: COUNTYOFFR-006
A52: Phone | L52: Supplier Name
A53: sespino@fresnocountyca.gov | L53: 2281 Tulare Street, Room 304
A54: Email | L54: Address Line 1
A55: 2023-06-29 | L55: Fresno, CA 93721
A56: Date | L56: Address Line 2
E58: Greg Reinke, Assistant County Administrative Officer
E59: Name, Title
E60: 559-600-1225
E61: Phone
E62: 2023-06-29
E63: Date
E64: Certified in old invoice workbook | F64: Please initial here to certify the submission of this invoice.
A66: BSCC USE ONLY
A67: Date Received: | C67: 2023-06-29 | G67: Approved By:
I68: BSCC Field Representative, Date

Sheet INVOICE 2
A1: STATE OF CALIFORNIA | L1: Purchase Authority | N1: ='INVOICE 1'!N1 -> BSCC 5227
A2: BOARD OF STATE AND COMMUNITY CORRECTIONS | L2: Purchase Order: | N2: ='INVOICE 1'!N2 -> 5227-0000003918
A3: Financial Invoice Form: BSCC 201 (Revised 01/2023)
A5: Program: | B5: ='INVOICE 1'!B5 -> Public Defense Pilot Program | K5: Please Note: The California State Controller's Office will send all checks directly to the address listed in the "BSCC Vendor Data" section at the bottom of this invoice.
A7: Grantee: | B7: ='INVOICE 1'!B7 -> County of Fresno | F7: Project Title:
A9: Contract #: | B9: ='INVOICE 1'!B9 -> BSCC 323-21 | D9: Term: | E9: ='INVOICE 1'!E9 -> 2022-03-01 | F9: TO | G9: ='INVOICE 1'!G9 -> 2025-03-01 | L9: Invoicing Frequency | M9: Quarterly
A11: Invoice #: | B11: 2 PDPP 21 | D11: Reporting Period: | E11: 2022-07-01 | F11: TO | G11: 2022-09-30 | H11: Due: | I11: 2022-11-15 | L11: Final Invoice (Y/N): | M11: No
A13: Line Items | B13: Budget | E13: Prior Expenditures | H13: This Reporting Period | K13: Balance | N13: Advance Disbursements
B14: Grant Funds | C14: Project Income | D14: TOTAL | E14: Grant Funds | F14: Project Income | G14: TOTAL | H14: Grant Funds | I14: Project Income | J14: TOTAL | K14: Grant Funds | L14: Project Income | M14: TOTAL
A15: Salaries & Benefits | B15: ='INVOICE 1'!B15 -> 959060 | C15: ='INVOICE 1'!C15 -> 0 | D15: =SUM(B15:C15) -> 959060 | E15: =SUM('INVOICE 1'!E15,'INVOICE 1'!H15) -> 27220 | F15: =SUM('INVOICE 1'!F15,'INVOICE 1'!I15) -> 0 | G15: =SUM(E15:F15) -> 27220 | H15: 63275 | I15: 0 | J15: =SUM(H15:I15) -> 63275 | K15: =B15-E15-H15 -> 868565 | L15: 0 | M15: =SUM(K15:L15) -> 868565 | N15: 1st Advance 5/23/2022
A16: Services & Supplies | B16: ='INVOICE 1'!B16 -> 17470.38 | C16: ='INVOICE 1'!C16 -> 0 | D16: 17470.38 | E16: =SUM('INVOICE 1'!E16,'INVOICE 1'!H16) -> 0 | F16: =SUM('INVOICE 1'!F16,'INVOICE 1'!I16) -> 0 | G16: =SUM(E16:F16) -> 0 | H16: 6729 | I16: 0 | J16: 6729 | K16: 10741.38 | L16: 0 | M16: 10741.38 | N16: ='1st Advance Payment'!K20 -> 1204165
A17: Professional Services or Public Agency Subcontract | B17: ='INVOICE 1'!B17 -> 126282.28 | C17: ='INVOICE 1'!C17 -> 0 | D17: 126282.28 | E17: =SUM('INVOICE 1'!E17,'INVOICE 1'!H17) -> 0 | F17: =SUM('INVOICE 1'!F17,'INVOICE 1'!I17) -> 0 | G17: =SUM(E17:F17) -> 0 | H17: 0 | I17: 0 | J17: 0 | K17: 126282.28 | L17: 0 | M17: 126282.28
A18: NGO Subcontracts | B18: ='INVOICE 1'!B18 -> 0 | C18: ='INVOICE 1'!C18 -> 0 | D18: 0 | E18: =SUM('INVOICE 1'!E18,'INVOICE 1'!H18) -> 0 | F18: =SUM('INVOICE 1'!F18,'INVOICE 1'!I18) -> 0 | G18: 0 | H18: 0 | I18: 0 | J18: 0 | K18: 0 | L18: 0 | M18: 0
A19: Equipment / Fixed Assets | B19: ='INVOICE 1'!B19 -> 0 | C19: ='INVOICE 1'!C19 -> 0 | D19: 0 | E19: =SUM('INVOICE 1'!E19,'INVOICE 1'!H19) -> 0 | F19: =SUM('INVOICE 1'!F19,'INVOICE 1'!I19) -> 0 | G19: 0 | H19: 0 | I19: 0 | J19: 0 | K19: 0 | L19: 0 | M19: 0
A20: Other | B20: ='INVOICE 1'!B20 -> 3200 | C20: ='INVOICE 1'!C20 -> 0 | D20: =SUM(B20:C20) -> 3200 | E20: =SUM('INVOICE 1'!E20,'INVOICE 1'!H20) -> 0 | F20: =SUM('INVOICE 1'!F20,'INVOICE 1'!I20) -> 0 | G20: 0 | H20: 0 | I20: 0 | J20: 0 | K20: 3200 | L20: 0 | M20: 3200
A21: Indirect Costs | B21: ='INVOICE 1'!B21 -> 98152.34 | C21: ='INVOICE 1'!C21 -> 0 | D21: 98152.34 | E21: =SUM('INVOICE 1'!E21,'INVOICE 1'!H21) -> 2722 | F21: =SUM('INVOICE 1'!F21,'INVOICE 1'!I21) -> 0 | G21: 2722 | H21: 7000 | I21: 0 | J21: 7000 | K21: 88430.34 | L21: 0 | M21: 88430.34
A22: TOTAL | B22: =SUM(B15:B21) -> 1204165 | C22: =SUM(C15:C21) -> 0 | D22: =SUM(D15:D21) -> 1204165 | E22: =SUM(E15:E21) -> 29942 | F22: 0 | G22: 29942 | H22: 77004 | I22: =SUM(I15:I21) -> 0 | J22: 77004 | K22: 1097219 | L22: 0 | M22: 1097219 | N22: =SUM(N16+N19+N20) -> 1204165
A24: Project Income | C24: Income reported to date | D24: ='INVOICE 1'!D24+'INVOICE 1'!I24 -> 0 | F24: Prior allocated income | G24: ='INVOICE 1'!I24 -> 0 | H24: This Period | I24: 0 | L24: Unallocated income balance | M24: =D24-G24 -> 0
C26: Grant funds expended to date: | D26: =SUM(E22,H22) -> 106946 | G26: Grant funds claimed this period: | H26: =H22 -> 77004 | L26: Percent of total disbursed
C27: Project Income to date: | D27: =SUM(F22,I22) -> 0 | F27: Advance Disbursement Balance | H27: =N22-D26 -> 1097219 | L27: funds expended to date: | N27: =D26/N22 -> 0.08881341012
D31: Expenditure Descriptions - Units / $ Amounts | L31: Comments
A32: Salaries & Benefits | B32: Grant Funds | C32: =H15 -> 63275 | D32: Defense Attorney III FTE $49.4309/hour x 472 hours =$23,331.4 + $15080.32 benefits= $38,411.72; Senior Defense Attorney 0.4 FTE $68.4625/hr x 193 hours = $13213.27+ $9198.17 benefits = $22,411.44; Senior Defense Attorney $76.9175/hr x 14.3 hours = $1099.92 + $834.22 benefits = $1,934.14; Defense Investigator II $37.75/hr x 7.4 hours = $279.35 + $238.64 benefits = $517.99
B33: Project Income | C33: =I15 -> 0
A34: Services & Supplies | B34: Grant Funds | C34: =H16 -> 6729 | D34: 3 Dell Laptops, 1 Surface Pro Tablet
B35: Project Income | C35: =I16 -> 0
A36: Professional Services or Public Agency Subcontracts | B36: Grant Funds | C36: =H17 -> 0
B37: Project Income | C37: =I17 -> 0
A38: NGO Subcontracts | B38: Grant Funds | C38: =H18 -> 0
B39: Project Income | C39: =I18 -> 0
A40: Equipment / Fixed Assets | B40: Grant Funds | C40: =H19 -> 0
B41: Project Income | C41: =I19 -> 0
A42: Other | B42: Grant Funds | C42: =H20 -> 0
B43: Project Income | C43: =I20 -> 0
A44: Indirect Costs | B44: Grant Funds | C44: =H21 -> 7000 | D44: Minimum given by grant allowance to cover indirect costs such as administrative time, office space, etc.
B45: Project Income | C45: =I21 -> 0
A46: Project Income | C46: =I24 -> 0
A47: PERSON PREPARING REPORT | E47: AUTHORIZED FINANCIAL OFFICER | L47: BSCC Supplier Data - Internal Use Only
E48: By checking the box below, I hereby certify that I am the authorized financial officer of the herein named agency. I further certify that I have not violated any of the provisions of Section 1090 of the Government Code in incurring the expenditures reported in this invoice, nor in any other way; that Sections 1090 through 1096 of the Government Code will not be violated in any way in the expenditure of funds pursuant to this invoice; that statement of funds above is true, correct, and in accordance with program provisions in all respects; and that all expenditures submitted after the expiration date of this contract are for the purpose of substantiating obligations legally incurred during the contract period. Furthermore, by submitting this invoice, I acknowledge that it must adhere to all of the requirements in the BSCC Grant Administration Guide, including any updates to the Guide during the term of the grant agreement.
A49: Salvador Espino, Senior Administrative Analyst | L49: 00000014996
A50: Name, Title | L50: Supplier ID
A51: 559-600-1228 | L51: COUNTYOFFR-006
A52: Phone | L52: Supplier Name
A53: sespino@fresnocountyca.gov | L53: 2281 Tulare Street, Room 304
A54: Email | L54: Address Line 1
A55: 2022-12-23 | L55: Fresno, CA 93721
A56: Date | L56: Address Line 2
E58: Greg Reinke, Assistant County Administrative Officer
E59: Name, Title
E60: 559-600-1225
E61: Phone
E62: 2022-12-23
E63: Date
E64: Certified in old invoice workbook | F64: Please initial here to certify the submission of this invoice.
A66: BSCC USE ONLY
A67: Date Received: | C67: 2022-12-23 | G67: Approved By: | I67: Dameion Renault
I68: BSCC Field Representative, Date

Sheet INVOICE 3
A1: STATE OF CALIFORNIA | L1: Purchase Authority | N1: ='INVOICE 1'!N1 -> BSCC 5227
A2: BOARD OF STATE AND COMMUNITY CORRECTIONS | L2: Purchase Order: | N2: ='INVOICE 2'!N2 -> 5227-0000003918
A3: Financial Invoice Form: BSCC 201 (Revised 01/2023)
A5: Program: | B5: ='INVOICE 1'!B5 -> Public Defense Pilot Program | K5: Please Note: The California State Controller's Office will send all checks directly to the address listed in the "BSCC Vendor Data" section at the bottom of this invoice.
A7: Grantee: | B7: ='INVOICE 1'!B7 -> County of Fresno | F7: Project Title:
A9: Contract #: | B9: ='INVOICE 1'!B9 -> BSCC 323-21 | D9: Term: | E9: ='INVOICE 1'!E9 -> 2022-03-01 | F9: TO | G9: ='INVOICE 1'!G9 -> 2025-03-01 | L9: Invoicing Frequency | M9: Quarterly
A11: Invoice #: | B11: 3 PDPP 21 | D11: Reporting Period: | E11: 2022-10-01 | F11: TO | G11: 2022-12-31 | H11: Due: | I11: 2023-02-15 | L11: Final Invoice (Y/N): | M11: No
A13: Line Items | B13: Budget | E13: Prior Expenditures | H13: This Reporting Period | K13: Balance | N13: Advance Disbursements
B14: Grant Funds | C14: Project Income | D14: TOTAL | E14: Grant Funds | F14: Project Income | G14: TOTAL | H14: Grant Funds | I14: Project Income | J14: TOTAL | K14: Grant Funds | L14: Project Income | M14: TOTAL
A15: Salaries & Benefits | B15: ='INVOICE 2'!B15 -> 959060 | C15: ='INVOICE 2'!C15 -> 0 | D15: =SUM(B15:C15) -> 959060 | E15: =SUM('INVOICE 2'!E15,'INVOICE 2'!H15) -> 90495 | F15: =SUM('INVOICE 2'!F15,'INVOICE 2'!I15) -> 0 | G15: =SUM(E15:F15) -> 90495 | H15: 112839 | I15: 0 | J15: =SUM(H15:I15) -> 112839 | K15: =B15-E15-H15 -> 755726 | L15: 0 | M15: =SUM(K15:L15) -> 755726 | N15: 1st Advance 5/23/2022
A16: Services & Supplies | B16: ='INVOICE 2'!B16 -> 17470.38 | C16: ='INVOICE 2'!C16 -> 0 | D16: 17470.38 | E16: =SUM('INVOICE 2'!E16,'INVOICE 2'!H16) -> 6729 | F16: =SUM('INVOICE 2'!F16,'INVOICE 2'!I16) -> 0 | G16: =SUM(E16:F16) -> 6729 | I16: 0 | J16: 0 | K16: 10741.38 | L16: 0 | M16: 10741.38 | N16: ='1st Advance Payment'!K20 -> 1204165
A17: Professional Services or Public Agency Subcontract | B17: ='INVOICE 2'!B17 -> 126282.28 | C17: ='INVOICE 2'!C17 -> 0 | D17: 126282.28 | E17: =SUM('INVOICE 2'!E17,'INVOICE 2'!H17) -> 0 | F17: =SUM('INVOICE 2'!F17,'INVOICE 2'!I17) -> 0 | G17: =SUM(E17:F17) -> 0 | H17: 32210.57 | I17: 0 | J17: 32210.57 | K17: 94071.71 | L17: 0 | M17: 94071.71
A18: NGO Subcontracts | B18: ='INVOICE 2'!B18 -> 0 | C18: ='INVOICE 2'!C18 -> 0 | D18: 0 | E18: =SUM('INVOICE 2'!E18,'INVOICE 2'!H18) -> 0 | F18: =SUM('INVOICE 2'!F18,'INVOICE 2'!I18) -> 0 | G18: 0 | H18: 0 | I18: 0 | J18: 0 | K18: 0 | L18: 0 | M18: 0
A19: Equipment / Fixed Assets | B19: ='INVOICE 2'!B19 -> 0 | C19: ='INVOICE 2'!C19 -> 0 | D19: 0 | E19: =SUM('INVOICE 2'!E19,'INVOICE 2'!H19) -> 0 | F19: =SUM('INVOICE 2'!F19,'INVOICE 2'!I19) -> 0 | G19: 0 | H19: 0 | I19: 0 | J19: 0 | K19: 0 | L19: 0 | M19: 0
A20: Other | B20: ='INVOICE 2'!B20 -> 3200 | C20: ='INVOICE 2'!C20 -> 0 | D20: =SUM(B20:C20) -> 3200 | E20: =SUM('INVOICE 2'!E20,'INVOICE 2'!H20) -> 0 | F20: =SUM('INVOICE 2'!F20,'INVOICE 2'!I20) -> 0 | G20: 0 | H20: 0 | I20: 0 | J20: 0 | K20: 3200 | L20: 0 | M20: 3200
A21: Indirect Costs | B21: ='INVOICE 2'!B21 -> 98152.34 | C21: ='INVOICE 2'!C21 -> 0 | D21: 98152.34 | E21: =SUM('INVOICE 2'!E21,'INVOICE 2'!H21) -> 9722 | F21: =SUM('INVOICE 2'!F21,'INVOICE 2'!I21) -> 0 | G21: 9722 | H21: 11284 | I21: 0 | J21: 11284 | K21: 77146.34 | L21: 0 | M21: 77146.34
A22: TOTAL | B22: =SUM(B15:B21) -> 1204165 | C22: =SUM(C15:C21) -> 0 | D22: =SUM(D15:D21) -> 1204165 | E22: =SUM(E15:E21) -> 106946 | F22: 0 | G22: 106946 | H22: 156333.57 | I22: =SUM(I15:I21) -> 0 | J22: 156333.57 | K22: 940885.43 | L22: 0 | M22: 940885.43 | N22: =SUM(N16+N19+N20) -> 1204165
A24: Project Income | C24: Income reported to date | D24: ='INVOICE 1'!D24+'INVOICE 1'!I24 -> 0 | F24: Prior allocated income | G24: ='INVOICE 1'!I24 -> 0 | H24: This Period | I24: 0 | L24: Unallocated income balance | M24: =D24-G24 -> 0
C26: Grant funds expended to date: | D26: =SUM(E22,H22) -> 263279.57 | G26: Grant funds claimed this period: | H26: =H22 -> 156333.57 | L26: Percent of total disbursed
C27: Project Income to date: | D27: =SUM(F22,I22) -> 0 | F27: Advance Disbursement Balance | H27: =N22-D26 -> 940885.43 | L27: funds expended to date: | N27: =D26/N22 -> 0.218640776
D31: Expenditure Descriptions - Units / $ Amounts | L31: Comments
A32: Salaries & Benefits | B32: Grant Funds | C32: =H15 -> 112839 | D32: Defense Attorney IV 34.9 hours x $54.8/hr = $1912.52 salaries + $146.31 benefits ; Senior Defense Attorney 262 hrs x $68.12/hr = $19085.36 salaries + $13011.92 benefits ; Defense Attorney III 480 hrs x 49.345/hr = $24016 salaries + $15516.25 benefits ; Paralegal 320 hrs x $25.45 = $8144 salaries + $ 5070.16 benefits ; Senior Defense Attorney 3.7 hrs x $71.7/hr = $284.59 salries + $215.84 benefits ; Senior Defense Attorney 182 hrs x $14617.73 salaries + $10436.22 benefits ; Defense Social Worker 6 hrs x $33.15/hr = $198.9 salaries + $182.79 benefits. | L32: Due to step increases and differential pay, salary rates for one employee can vary from one pay period to the next. The given hourly rate is an average during the time logged. Some amounts are off due to rounding. See attached Labor Distribution report for more detail.
B33: Project Income | C33: =I15 -> 0
A34: Services & Supplies | B34: Grant Funds | C34: =H16 -> 0
B35: Project Income | C35: =I16 -> 0
A36: Professional Services or Public Agency Subcontracts | B36: Grant Funds | C36: =H17 -> 32210.57 | D36: Attorney 520 hours X $38.46/Hr. = $19,999.98, Paralegal 198 hours X $25/Hr. = $4,950, Attorney 62.5 hours X $60.34/Hr. = $3,771.25, Attorney 8.5 hours X $55.77/Hr. = $474.05, Attorney 5 hours X $45/Hr. = $225, Attorney 4.5 Hours X $38.46/Hr. = $173.07, Attorney 8 hours X $38.65/Hr. = $309.20, Paralegal 78 Hours X $29.59/Hr. = $2,308.02 | L36: Duties performed include: Attoreny- Court Appearances and Heartings, Review File and offer from DDA Prepare for Hearings, Communitcate with client, Update Case Maanagment, Paralegal-Prepare all court documents for case, Pull file and prior court documents , write letters to all agencies as needed to facilate court hearings, research as needed, and assist attorney with hearing prep
B37: Project Income | C37: =I17 -> 0
A38: NGO Subcontracts | B38: Grant Funds | C38: =H18 -> 0
B39: Project Income | C39: =I18 -> 0
A40: Equipment / Fixed Assets | B40: Grant Funds | C40: =H19 -> 0
B41: Project Income | C41: =I19 -> 0
A42: Other | B42: Grant Funds | C42: =H20 -> 0
B43: Project Income | C43: =I20 -> 0
A44: Indirect Costs | B44: Grant Funds | C44: =H21 -> 11284 | D44: Minimum given by grant allowance to cover indirect costs such as administrative time, office space, etc.
B45: Project Income | C45: =I21 -> 0
A46: Project Income | C46: =I24 -> 0
A47: PERSON PREPARING REPORT | E47: AUTHORIZED FINANCIAL OFFICER | L47: BSCC Supplier Data - Internal Use Only
E48: By checking the box below, I hereby certify that I am the authorized financial officer of the herein named agency. I further certify that I have not violated any of the provisions of Section 1090 of the Government Code in incurring the expenditures reported in this invoice, nor in any other way; that Sections 1090 through 1096 of the Government Code will not be violated in any way in the expenditure of funds pursuant to this invoice; that statement of funds above is true, correct, and in accordance with program provisions in all respects; and that all expenditures submitted after the expiration date of this contract are for the purpose of substantiating obligations legally incurred during the contract period. Furthermore, by submitting this invoice, I acknowledge that it must adhere to all of the requirements in the BSCC Grant Administration Guide, including any updates to the Guide during the term of the grant agreement.
A49: Salvador Espino, Senior Administrative Analyst | L49: 00000014996
A50: Name, Title | L50: Supplier ID
A51: 559-600-1228 | L51: COUNTYOFFR-006
A52: Phone | L52: Supplier Name
A53: sespino@fresnocountyca.gov | L53: 2281 Tulare Street, Room 304
A54: Email | L54: Address Line 1
A55: 2023-02-15 | L55: Fresno, CA 93721
A56: Date | L56: Address Line 2
E58: Greg Reinke, Assistant County Administrative Officer
E59: Name, Title
E60: 559-600-1225
E61: Phone
E62: 2023-02-15
E63: Date
E64: Certified via checkbox in old invoice workbook | F64: Please initial here to certify the submission of this invoice.
A66: BSCC USE ONLY
A67: Date Received: | C67: 2023-02-16 | G67: Approved By:
I68: BSCC Field Representative, Date

Sheet INVOICE 4
A1: STATE OF CALIFORNIA | L1: Purchase Authority | N1: ='INVOICE 1'!N1 -> BSCC 5227
A2: BOARD OF STATE AND COMMUNITY CORRECTIONS | L2: Purchase Order: | N2: ='INVOICE 3'!N2 -> 5227-0000003918
A3: Financial Invoice Form: BSCC 201 (Revised 01/2023)
A5: Program: | B5: ='INVOICE 1'!B5 -> Public Defense Pilot Program | K5: Please Note: The California State Controller's Office will send all checks directly to the address listed in the "BSCC Vendor Data" section at the bottom of this invoice.
A7: Grantee: | B7: ='INVOICE 1'!B7 -> County of Fresno | F7: Project Title:
A9: Contract #: | B9: ='INVOICE 1'!B9 -> BSCC 323-21 | D9: Term: | E9: ='INVOICE 1'!E9 -> 2022-03-01 | F9: TO | G9: ='INVOICE 1'!G9 -> 2025-03-01 | L9: Invoicing Frequency | M9: Quarterly
A11: Invoice #: | B11: 4 PDPP 21 | D11: Reporting Period: | E11: 2023-01-01 | F11: TO | G11: 2023-03-31 | H11: Due: | I11: 2023-05-15 | L11: Final Invoice (Y/N): | M11: No
A13: Line Items | B13: Budget | E13: Prior Expenditures | H13: This Reporting Period | K13: Balance | N13: Advance Disbursements
B14: Grant Funds | C14: Project Income | D14: TOTAL | E14: Grant Funds | F14: Project Income | G14: TOTAL | H14: Grant Funds | I14: Project Income | J14: TOTAL | K14: Grant Funds | L14: Project Income | M14: TOTAL
A15: Salaries & Benefits | B15: ='INVOICE 3'!B15 -> 959060 | C15: ='INVOICE 3'!C15 -> 0 | D15: =SUM(B15:C15) -> 959060 | E15: =SUM('INVOICE 3'!E15,'INVOICE 3'!H15) -> 203334 | F15: =SUM('INVOICE 3'!F15,'INVOICE 3'!I15) -> 0 | G15: =SUM(E15:F15) -> 203334 | H15: 169352 | I15: 0 | J15: =SUM(H15:I15) -> 169352 | K15: =B15-E15-H15 -> 586374 | L15: 0 | M15: =SUM(K15:L15) -> 586374 | N15: 1st Advance 5/23/2022
A16: Services & Supplies | B16: ='INVOICE 3'!B16 -> 17470.38 | C16: ='INVOICE 3'!C16 -> 0 | D16: 17470.38 | E16: =SUM('INVOICE 3'!E16,'INVOICE 3'!H16) -> 6729 | F16: =SUM('INVOICE 3'!F16,'INVOICE 3'!I16) -> 0 | G16: =SUM(E16:F16) -> 6729 | H16: 0 | I16: 0 | J16: 0 | K16: 10741.38 | L16: 0 | M16: 10741.38 | N16: ='1st Advance Payment'!K20 -> 1204165
A17: Professional Services or Public Agency Subcontract | B17: ='INVOICE 3'!B17 -> 126282.28 | C17: ='INVOICE 3'!C17 -> 0 | D17: 126282.28 | E17: =SUM('INVOICE 3'!E17,'INVOICE 3'!H17) -> 32210.57 | F17: =SUM('INVOICE 3'!F17,'INVOICE 3'!I17) -> 0 | G17: =SUM(E17:F17) -> 32210.57 | H17: 35702 | I17: 0 | J17: 35702 | K17: 58369.71 | L17: 0 | M17: 58369.71
A18: NGO Subcontracts | B18: ='INVOICE 3'!B18 -> 0 | C18: ='INVOICE 3'!C18 -> 0 | D18: 0 | E18: =SUM('INVOICE 3'!E18,'INVOICE 3'!H18) -> 0 | F18: =SUM('INVOICE 3'!F18,'INVOICE 3'!I18) -> 0 | G18: 0 | H18: 0 | I18: 0 | J18: 0 | K18: 0 | L18: 0 | M18: 0
A19: Equipment / Fixed Assets | B19: ='INVOICE 3'!B19 -> 0 | C19: ='INVOICE 3'!C19 -> 0 | D19: 0 | E19: =SUM('INVOICE 3'!E19,'INVOICE 3'!H19) -> 0 | F19: =SUM('INVOICE 3'!F19,'INVOICE 3'!I19) -> 0 | G19: 0 | H19: 0 | I19: 0 | J19: 0 | K19: 0 | L19: 0 | M19: 0
A20: Other | B20: ='INVOICE 3'!B20 -> 3200 | C20: ='INVOICE 3'!C20 -> 0 | D20: =SUM(B20:C20) -> 3200 | E20: =SUM('INVOICE 3'!E20,'INVOICE 3'!H20) -> 0 | F20: =SUM('INVOICE 3'!F20,'INVOICE 3'!I20) -> 0 | G20: 0 | H20: 365 | I20: 0 | J20: 365 | K20: 2835 | L20: 0 | M20: 2835
A21: Indirect Costs | B21: ='INVOICE 3'!B21 -> 98152.34 | C21: ='INVOICE 3'!C21 -> 0 | D21: 98152.34 | E21: =SUM('INVOICE 3'!E21,'INVOICE 3'!H21) -> 21006 | F21: =SUM('INVOICE 3'!F21,'INVOICE 3'!I21) -> 0 | G21: 21006 | H21: 16935 | I21: 0 | J21: 16935 | K21: 60211.34 | L21: 0 | M21: 60211.34
A22: TOTAL | B22: =SUM(B15:B21) -> 1204165 | C22: =SUM(C15:C21) -> 0 | D22: =SUM(D15:D21) -> 1204165 | E22: =SUM(E15:E21) -> 263279.57 | F22: 0 | G22: 263279.57 | H22: 222354 | I22: =SUM(I15:I21) -> 0 | J22: 222354 | K22: 718531.43 | L22: 0 | M22: 718531.43 | N22: =SUM(N16+N19+N20) -> 1204165
A24: Project Income | C24: Income reported to date | D24: ='INVOICE 1'!D24+'INVOICE 1'!I24 -> 0 | F24: Prior allocated income | G24: ='INVOICE 1'!I24 -> 0 | H24: This Period | I24: 0 | L24: Unallocated income balance | M24: =D24-G24 -> 0
C26: Grant funds expended to date: | D26: =SUM(E22,H22) -> 485633.57 | G26: Grant funds claimed this period: | H26: =H22 -> 222354 | L26: Percent of total disbursed
C27: Project Income to date: | D27: =SUM(F22,I22) -> 0 | F27: Advance Disbursement Balance | H27: =N22-D26 -> 718531.43 | L27: funds expended to date: | N27: =D26/N22 -> 0.4032948724
D31: Expenditure Descriptions - Units / $ Amounts | L31: Comments
A32: Salaries & Benefits | B32: Grant Funds | C32: =H15 -> 169352 | D32: Senior Defense Attorney 210 hours x 70.34/hr + benefits = $27121.21; Senior Defense Attorney 214 hours x $ 73.85/hr + benefits = $30877.21; Senior Defense Attorney 34.4 hours x $73.85 + benefits =$4975.21; Defense Attorney IV 480 hours x $55.39/hr + benefits = $44,313.76; Marcus Lawson 320 hours x $31.69 + benefits = $15,763.26; Defense Social Worker 480 hours x $30.46/hr +benefits = $21,175.45; Paralegal 480 hours x $25.45/hr + benefits = $22125.85
B33: Project Income | C33: =I15 -> 0
A34: Services & Supplies | B34: Grant Funds | C34: =H16 -> 0
B35: Project Income | C35: =I16 -> 0
A36: Professional Services or Public Agency Subcontracts | B36: Grant Funds | C36: =H17 -> 35702 | D36: Attorney 520.02 hours X $38.46/hr + Benefits = $20,117.03; Paralegal 256 hours X $25/Hr. = $6,400; Paralegal 20 hours X $23/Hr. = $460; Attorney 35 Hours X $56.25/Hr. = $1,968.75; Employer Payroll Taxes for FAC Staff (4 staff mentioned previously) = $2,623.92; Attorney 29.65 hours X $60.34/Hr. = $1,789.08; Attorney 2.75 hours X $55.55/Hr. = $153.37; Attorney 3.7 hours X $45/Hr. = $166.50; Attorney 7.5 Hours X $38.46/Hr. = $288.45; Paralegal 47 Hours X $29.59/Hr. = $1,390.73; Employer Payroll Taxes for ADO Staff (5 staff mentioned previously) = $344.72
B37: Project Income | C37: =I17 -> 0
A38: NGO Subcontracts | B38: Grant Funds | C38: =H18 -> 0
B39: Project Income | C39: =I18 -> 0
A40: Equipment / Fixed Assets | B40: Grant Funds | C40: =H19 -> 0
B41: Project Income | C41: =I19 -> 0
A42: Other | B42: Grant Funds | C42: =H20 -> 365 | D42: $95 California Appellate Defense Counsel membership for Defense Investigator; $125 National Public Defense Conference for Defense Social Worker; $145 National Association of Criminal Defense Lawyers
B43: Project Income | C43: =I20 -> 0
A44: Indirect Costs | B44: Grant Funds | C44: =H21 -> 16935 | D44: Minimum given by grant allowance to cover indirect costs such as administrative time, office space, etc.
B45: Project Income | C45: =I21 -> 0
A46: Project Income | C46: =I24 -> 0
A47: PERSON PREPARING REPORT | E47: AUTHORIZED FINANCIAL OFFICER | L47: BSCC Supplier Data - Internal Use Only
E48: By checking the box below, I hereby certify that I am the authorized financial officer of the herein named agency. I further certify that I have not violated any of the provisions of Section 1090 of the Government Code in incurring the expenditures reported in this invoice, nor in any other way; that Sections 1090 through 1096 of the Government Code will not be violated in any way in the expenditure of funds pursuant to this invoice; that statement of funds above is true, correct, and in accordance with program provisions in all respects; and that all expenditures submitted after the expiration date of this contract are for the purpose of substantiating obligations legally incurred during the contract period. Furthermore, by submitting this invoice, I acknowledge that it must adhere to all of the requirements in the BSCC Grant Administration Guide, including any updates to the Guide during the term of the grant agreement.
A49: Salvador Espino, Principal Admin Analyst | L49: 00000014996
A50: Name, Title | L50: Supplier ID
A51: 559-600-1228 | L51: COUNTYOFFR-006
A52: Phone | L52: Supplier Name
A53: sespino@fresnocountyca.gov | L53: 2281 Tulare Street, Room 304
A54: Email | L54: Address Line 1
A55: 2023-06-29 | L55: Fresno, CA 93721
A56: Date | L56: Address Line 2
E58: Greg Reinke, Assistant CAO
E59: Name, Title
E60: 559-600-1225
E61: Phone
E62: 2023-06-29
E63: Date
E64: GR | F64: Please initial here to certify the submission of this invoice.
A66: BSCC USE ONLY
A67: Date Received: | C67: 2023-06-29 | G67: Approved By:
I68: BSCC Field Representative, Date

Sheet 2nd Advance Payment
A1: STATE OF CALIFORNIA | J1: Purchase Authority: 5227
A2: BOARD OF STATE AND COMMUNITY CORRECTIONS | J2: Purchase Order: 5227-0000004405
A3: Advance Payment Invoice - Form BSCC 201A (Revised 06/2020)
B6: Program: | C6: Public Defense Pilot Program Grant | H6: Grantee: | I6: ='[1]INVOICE 12'!B7 -> County of Fresno
B8: Contract #: | C8: ='[1]INVOICE 12'!B9 -> BSCC 323-21 | H8: Address | I8: ='[1]INVOICE 12'!L56 -> 2281 Tulare Street, Room 304
J9: Address Line 1
B10: Term: | C10: 2022-03-01 | D10: TO | E10: 2025-03-01 | I10: ='[1]INVOICE 12'!L58 -> Fresno, CA 93721
J11: Address Line 2
B13: Advance Payment # | C13: 2 PDPP 21 - ADV PMT | G13: Please Note: The California State Controller's Office will send all checks directly to the address listed in the "FI$Cal Supplier Data" section at the bottom of this invoice.
B15: Payment Request Date: | C15: 2023-05-31
A18: Advance Payment Invoice
J19: Total Grant Award: | K19: 2389570.69
J20: 2nd Advance Payment Total: | K20: 1185405.69
J21: 1st Advance Payment Total: | K21: -1204165
J22: Grant Award Balance: | K22: =(K19-K20)+K21 -> 0
F27: BSCC USE ONLY
J29: FI$Cal Supplier Data
I30: ='[1]INVOICE 12'!L54 -> COUNTYOFFR-006
J31: Supplier
B32: Approved By: | I32: ='[1]INVOICE 12'!L52 -> 00000014996
C33: BSCC Field Representative, Date | J33: Supplier ID

Sheet Year 2 Augment Budget
A1: BUDGET TABLE FOR YEAR 2 - AUGMENTATION OF FUNDS | G1: TOTAL BUDGET EFFECTIVE INVOICE 5
A2: BSCC Budget Line Item | B2: Year 1 Grant Funds | C2: Year 1 Project Income | D2: Year 2 Grant Funds | E2: Year 2 Project Income | G2: Grant Funds | H2: Project Income
A3: 1. Salaries and Benefits | B3: 959060 | C3: 0 | D3: 824893 | E3: 0 | G3: =SUM(B3,D3) -> 1783953 | H3: =SUM(C3,E3) -> 0
A4: 2 Services and Supplies | B4: 17470.38 | C4: 0 | D4: 4253 | E4: 0 | G4: =SUM(B4,D4) -> 21723.38 | H4: 0
A5: 3. Professional Services or Public Agency Subcontracts | B5: 126282.28 | C5: 0 | D5: 151556.69 | E5: 0 | G5: 277838.97 | H5: 0
A6: 4. Non-Governmental Organizations (NGO) Contracts | B6: 0 | C6: 0 | D6: 0 | E6: 0 | G6: 0 | H6: 0
A7: 5. Equipment / Fixed Assets | B7: 0 | C7: 0 | D7: 0 | E7: 0 | G7: 0 | H7: 0
A8: 6. Other (Travel, Training, etc.) | B8: 3200 | C8: 0 | D8: 7145 | E8: 0 | G8: 10345 | H8: 0
A9: 7. Indirect Costs | B9: 98152.34 | C9: 0 | D9: 197558 | E9: 0 | G9: 295710.34 | H9: 0
A10: TOTAL | B10: =SUM(B3:B9) -> 1204165 | C10: =SUM(C3:C9) -> 0 | D10: 1185405.69 | E10: 0 | G10: =SUM(G3:G9) -> 2389570.69 | H10: =SUM(H3:H9) -> 0

Sheet INVOICE 5
A1: STATE OF CALIFORNIA | L1: Purchase Authority | N1: ='INVOICE 1'!N1 -> BSCC 5227
A2: BOARD OF STATE AND COMMUNITY CORRECTIONS | L2: Purchase Order: | N2: ='INVOICE 1'!N2 -> 5227-0000003918
A3: Financial Invoice Form: BSCC 201 (Revised 01/2023)
A5: Program: | B5: ='INVOICE 1'!B5 -> Public Defense Pilot Program | K5: Please Note: The California State Controller's Office will send all checks directly to the address listed in the "BSCC Vendor Data" section at the bottom of this invoice.
A7: Grantee: | B7: ='INVOICE 1'!B7 -> County of Fresno | F7: Project Title:
A9: Contract #: | B9: ='INVOICE 1'!B9 -> BSCC 323-21 | D9: Term: | E9: ='INVOICE 1'!E9 -> 2022-03-01 | F9: TO | G9: ='INVOICE 1'!G9 -> 2025-03-01 | L9: Invoicing Frequency | M9: Quarterly
A11: Invoice #: | B11: 5 PDPP 21 | D11: Reporting Period: | E11: 2023-04-01 | F11: TO | G11: 2023-06-30 | H11: Due: | I11: 2023-08-15 | L11: Final Invoice (Y/N): | M11: No
A13: Line Items | B13: Budget | E13: Prior Expenditures | H13: This Reporting Period | K13: Balance | N13: Advance Disbursements
B14: Grant Funds | C14: Project Income | D14: TOTAL | E14: Grant Funds | F14: Project Income | G14: TOTAL | H14: Grant Funds | I14: Project Income | J14: TOTAL | K14: Grant Funds | L14: Project Income | M14: TOTAL
A15: Salaries & Benefits | B15: 1783953 | C15: ='INVOICE 4'!C15 -> 0 | D15: =SUM(B15:C15) -> 1783953 | E15: =SUM('INVOICE 4'!E15,'INVOICE 4'!H15) -> 372686 | F15: =SUM('INVOICE 4'!F15,'INVOICE 4'!I15) -> 0 | G15: =SUM(E15:F15) -> 372686 | H15: 0 | I15: 0 | J15: =SUM(H15:I15) -> 0 | K15: =B15-E15-H15 -> 1411267 | L15: 0 | M15: =SUM(K15:L15) -> 1411267 | N15: 1st Advance 5/23/2022
A16: Services & Supplies | B16: 21723.38 | C16: ='INVOICE 4'!C16 -> 0 | D16: 21723.38 | E16: =SUM('INVOICE 4'!E16,'INVOICE 4'!H16) -> 6729 | F16: =SUM('INVOICE 4'!F16,'INVOICE 4'!I16) -> 0 | G16: =SUM(E16:F16) -> 6729 | H16: 0 | I16: 0 | J16: 0 | K16: 14994.38 | L16: 0 | M16: 14994.38 | N16: ='1st Advance Payment'!K20 -> 1204165
A17: Professional Services or Public Agency Subcontract | B17: 277838.97 | C17: ='INVOICE 4'!C17 -> 0 | D17: 277838.97 | E17: =SUM('INVOICE 4'!E17,'INVOICE 4'!H17) -> 67912.57 | F17: =SUM('INVOICE 4'!F17,'INVOICE 4'!I17) -> 0 | G17: =SUM(E17:F17) -> 67912.57 | H17: 0 | I17: 0 | J17: 0 | K17: 209926.4 | L17: 0 | M17: 209926.4 | N17: 2nd Advance [enter date]
A18: NGO Subcontracts | B18: 0 | C18: ='INVOICE 4'!C18 -> 0 | D18: 0 | E18: =SUM('INVOICE 4'!E18,'INVOICE 4'!H18) -> 0 | F18: =SUM('INVOICE 4'!F18,'INVOICE 4'!I18) -> 0 | G18: 0 | H18: 0 | I18: 0 | J18: 0 | K18: 0 | L18: 0 | M18: 0 | N18: 1185405.69
A19: Equipment / Fixed Assets | B19: 0 | C19: ='INVOICE 4'!C19 -> 0 | D19: 0 | E19: =SUM('INVOICE 4'!E19,'INVOICE 4'!H19) -> 0 | F19: =SUM('INVOICE 4'!F19,'INVOICE 4'!I19) -> 0 | G19: 0 | H19: 0 | I19: 0 | J19: 0 | K19: 0 | L19: 0 | M19: 0
A20: Other | B20: 10345 | C20: ='INVOICE 4'!C20 -> 0 | D20: =SUM(B20:C20) -> 10345 | E20: =SUM('INVOICE 4'!E20,'INVOICE 4'!H20) -> 365 | F20: =SUM('INVOICE 4'!F20,'INVOICE 4'!I20) -> 0 | G20: 365 | H20: 0 | I20: 0 | J20: 0 | K20: 9980 | L20: 0 | M20: 9980
A21: Indirect Costs | B21: 295710.34 | C21: ='INVOICE 4'!C21 -> 0 | D21: 295710.34 | E21: =SUM('INVOICE 4'!E21,'INVOICE 4'!H21) -> 37941 | F21: =SUM('INVOICE 4'!F21,'INVOICE 4'!I21) -> 0 | G21: 37941 | H21: 0 | I21: 0 | J21: 0 | K21: 257769.34 | L21: 0 | M21: 257769.34
A22: TOTAL | B22: =SUM(B15:B21) -> 2389570.69 | C22: =SUM(C15:C21) -> 0 | D22: =SUM(D15:D21) -> 2389570.69 | E22: =SUM(E15:E21) -> 485633.57 | F22: 0 | G22: 485633.57 | H22: 0 | I22: =SUM(I15:I21) -> 0 | J22: 0 | K22: 1903937.12 | L22: 0 | M22: 1903937.12 | N22: =SUM(N16+N18+N20) -> 2389570.69
A24: Project Income | C24: Income reported to date | D24: ='INVOICE 1'!D24+'INVOICE 1'!I24 -> 0 | F24: Prior allocated income | G24: ='INVOICE 1'!I24 -> 0 | H24: This Period | I24: 0 | L24: Unallocated income balance | M24: =D24-G24 -> 0
C26: Grant funds expended to date: | D26: =SUM(E22,H22) -> 485633.57 | G26: Grant funds claimed this period: | H26: =H22 -> 0 | L26: Percent of total disbursed
C27: Project Income to date: | D27: =SUM(F22,I22) -> 0 | F27: Advance Disbursement Balance | H27: =N22-D26 -> 1903937.12 | L27: funds expended to date: | N27: =D26/N22 -> 0.2032304681
D31: Expenditure Descriptions - Units / $ Amounts | L31: Comments
A32: Salaries & Benefits | B32: Grant Funds | C32: =H15 -> 0
B33: Project Income | C33: =I15 -> 0
A34: Services & Supplies | B34: Grant Funds | C34: =H16 -> 0
B35: Project Income | C35: =I16 -> 0
A36: Professional Services or Public Agency Subcontracts | B36: Grant Funds | C36: =H17 -> 0
B37: Project Income | C37: =I17 -> 0
A38: NGO Subcontracts | B38: Grant Funds | C38: =H18 -> 0
B39: Project Income | C39: =I18 -> 0
A40: Equipment / Fixed Assets | B40: Grant Funds | C40: =H19 -> 0
B41: Project Income | C41: =I19 -> 0
A42: Other | B42: Grant Funds | C42: =H20 -> 0
B43: Project Income | C43: =I20 -> 0
A44: Indirect Costs | B44: Grant Funds | C44: =H21 -> 0
B45: Project Income | C45: =I21 -> 0
A46: Project Income | C46: =I24 -> 0
A47: PERSON PREPARING REPORT | E47: AUTHORIZED FINANCIAL OFFICER | L47: BSCC Supplier Data - Internal Use Only
E48: By checking the box below, I hereby certify that I am the authorized financial officer of the herein named agency. I further certify that I have not violated any of the provisions of Section 1090 of the Government Code in incurring the expenditures reported in this invoice, nor in any other way; that Sections 1090 through 1096 of the Government Code will not be violated in any way in the expenditure of funds pursuant to this invoice; that statement of funds above is true, correct, and in accordance with program provisions in all respects; and that all expenditures submitted after the expiration date of this contract are for the purpose of substantiating obligations legally incurred during the contract period. Furthermore, by submitting this invoice, I acknowledge that it must adhere to all of the requirements in the BSCC Grant Administration Guide, including any updates to the Guide during the term of the grant agreement.
L49: 00000014996
A50: Name, Title | L50: Supplier ID
L51: COUNTYOFFR-006
A52: Phone | L52: Supplier Name
L53: 2281 Tulare Street, Room 304
A54: Email | L54: Address Line 1
L55: Fresno, CA 93721
A56: Date | L56: Address Line 2
E59: Name, Title
E61: Phone
E63: Date
F64: Please initial here to certify the submission of this invoice.
A66: BSCC USE ONLY
A67: Date Received: | G67: Approved By:
I68: BSCC Field Representative, Date

Sheet INVOICE 6
A1: STATE OF CALIFORNIA | L1: Purchase Authority | N1: ='INVOICE 1'!N1 -> BSCC 5227
A2: BOARD OF STATE AND COMMUNITY CORRECTIONS | L2: Purchase Order: | N2: ='INVOICE 1'!N2 -> 5227-0000003918
A3: Financial Invoice Form: BSCC 201 (Revised 01/2023)
A5: Program: | B5: ='INVOICE 1'!B5 -> Public Defense Pilot Program | K5: Please Note: The California State Controller's Office will send all checks directly to the address listed in the "BSCC Vendor Data" section at the bottom of this invoice.
A7: Grantee: | B7: ='INVOICE 1'!B7 -> County of Fresno | F7: Project Title:
A9: Contract #: | B9: ='INVOICE 1'!B9 -> BSCC 323-21 | D9: Term: | E9: ='INVOICE 1'!E9 -> 2022-03-01 | F9: TO | G9: ='INVOICE 1'!G9 -> 2025-03-01 | L9: Invoicing Frequency | M9: Quarterly
A11: Invoice #: | B11: 6 PDPP 21 | D11: Reporting Period: | E11: 2023-07-01 | F11: TO | G11: 2023-09-30 | H11: Due: | I11: 2023-11-15 | L11: Final Invoice (Y/N): | M11: No
A13: Line Items | B13: Budget | E13: Prior Expenditures | H13: This Reporting Period | K13: Balance | N13: Advance Disbursements
B14: Grant Funds | C14: Project Income | D14: TOTAL | E14: Grant Funds | F14: Project Income | G14: TOTAL | H14: Grant Funds | I14: Project Income | J14: TOTAL | K14: Grant Funds | L14: Project Income | M14: TOTAL
A15: Salaries & Benefits | B15: ='INVOICE 5'!B15 -> 1783953 | C15: ='INVOICE 5'!C15 -> 0 | D15: =SUM(B15:C15) -> 1783953 | E15: =SUM('INVOICE 5'!E15,'INVOICE 5'!H15) -> 372686 | F15: =SUM('INVOICE 5'!F15,'INVOICE 5'!I15) -> 0 | G15: =SUM(E15:F15) -> 372686 | H15: 0 | I15: 0 | J15: =SUM(H15:I15) -> 0 | K15: =B15-E15-H15 -> 1411267 | L15: 0 | M15: =SUM(K15:L15) -> 1411267 | N15: 1st Advance 5/23/2022
A16: Services & Supplies | B16: ='INVOICE 5'!B16 -> 21723.38 | C16: ='INVOICE 5'!C16 -> 0 | D16: 21723.38 | E16: =SUM('INVOICE 5'!E16,'INVOICE 5'!H16) -> 6729 | F16: =SUM('INVOICE 5'!F16,'INVOICE 5'!I16) -> 0 | G16: =SUM(E16:F16) -> 6729 | H16: 0 | I16: 0 | J16: 0 | K16: 14994.38 | L16: 0 | M16: 14994.38 | N16: ='1st Advance Payment'!K20 -> 1204165
A17: Professional Services or Public Agency Subcontract | B17: ='INVOICE 5'!B17 -> 277838.97 | C17: ='INVOICE 5'!C17 -> 0 | D17: 277838.97 | E17: =SUM('INVOICE 5'!E17,'INVOICE 5'!H17) -> 67912.57 | F17: =SUM('INVOICE 5'!F17,'INVOICE 5'!I17) -> 0 | G17: =SUM(E17:F17) -> 67912.57 | H17: 0 | I17: 0 | J17: 0 | K17: 209926.4 | L17: 0 | M17: 209926.4 | N17: ='INVOICE 5'!N17 -> 2nd Advance [enter date]
A18: NGO Subcontracts | B18: ='INVOICE 5'!B18 -> 0 | C18: ='INVOICE 5'!C18 -> 0 | D18: 0 | E18: =SUM('INVOICE 5'!E18,'INVOICE 5'!H18) -> 0 | F18: =SUM('INVOICE 5'!F18,'INVOICE 5'!I18) -> 0 | G18: 0 | H18: 0 | I18: 0 | J18: 0 | K18: 0 | L18: 0 | M18: 0 | N18: 1185405.69
A19: Equipment / Fixed Assets | B19: ='INVOICE 5'!B19 -> 0 | C19: ='INVOICE 5'!C19 -> 0 | D19: 0 | E19: =SUM('INVOICE 5'!E19,'INVOICE 5'!H19) -> 0 | F19: =SUM('INVOICE 5'!F19,'INVOICE 5'!I19) -> 0 | G19: 0 | H19: 0 | I19: 0 | J19: 0 | K19: 0 | L19: 0 | M19: 0
A20: Other | B20: ='INVOICE 5'!B20 -> 10345 | C20: ='INVOICE 5'!C20 -> 0 | D20: =SUM(B20:C20) -> 10345 | E20: =SUM('INVOICE 5'!E20,'INVOICE 5'!H20) -> 365 | F20: =SUM('INVOICE 5'!F20,'INVOICE 5'!I20) -> 0 | G20: 365 | H20: 0 | I20: 0 | J20: 0 | K20: 9980 | L20: 0 | M20: 9980
A21: Indirect Costs | B21: ='INVOICE 5'!B21 -> 295710.34 | C21: ='INVOICE 5'!C21 -> 0 | D21: 295710.34 | E21: =SUM('INVOICE 5'!E21,'INVOICE 5'!H21) -> 37941 | F21: =SUM('INVOICE 5'!F21,'INVOICE 5'!I21) -> 0 | G21: 37941 | H21: 0 | I21: 0 | J21: 0 | K21: 257769.34 | L21: 0 | M21: 257769.34
A22: TOTAL | B22: =SUM(B15:B21) -> 2389570.69 | C22: =SUM(C15:C21) -> 0 | D22: =SUM(D15:D21) -> 2389570.69 | E22: =SUM(E15:E21) -> 485633.57 | F22: 0 | G22: 485633.57 | H22: 0 | I22: =SUM(I15:I21) -> 0 | J22: 0 | K22: 1903937.12 | L22: 0 | M22: 1903937.12 | N22: =SUM(N16+N18+N20) -> 2389570.69
A24: Project Income | C24: Income reported to date | D24: ='INVOICE 1'!D24+'INVOICE 1'!I24 -> 0 | F24: Prior allocated income | G24: ='INVOICE 1'!I24 -> 0 | H24: This Period | I24: 0 | L24: Unallocated income balance | M24: =D24-G24 -> 0
C26: Grant funds expended to date: | D26: =SUM(E22,H22) -> 485633.57 | G26: Grant funds claimed this period: | H26: =H22 -> 0 | L26: Percent of total disbursed
C27: Project Income to date: | D27: =SUM(F22,I22) -> 0 | F27: Advance Disbursement Balance | H27: =N22-D26 -> 1903937.12 | L27: funds expended to date: | N27: =D26/N22 -> 0.2032304681
D31: Expenditure Descriptions - Units / $ Amounts | L31: Comments
A32: Salaries & Benefits | B32: Grant Funds | C32: =H15 -> 0
B33: Project Income | C33: =I15 -> 0
A34: Services & Supplies | B34: Grant Funds | C34: =H16 -> 0
B35: Project Income | C35: =I16 -> 0
A36: Professional Services or Public Agency Subcontracts | B36: Grant Funds | C36: =H17 -> 0
B37: Project Income | C37: =I17 -> 0
A38: NGO Subcontracts | B38: Grant Funds | C38: =H18 -> 0
B39: Project Income | C39: =I18 -> 0
A40: Equipment / Fixed Assets | B40: Grant Funds | C40: =H19 -> 0
B41: Project Income | C41: =I19 -> 0
A42: Other | B42: Grant Funds | C42: =H20 -> 0
B43: Project Income | C43: =I20 -> 0
A44: Indirect Costs | B44: Grant Funds | C44: =H21 -> 0
B45: Project Income | C45: =I21 -> 0
A46: Project Income | C46: =I24 -> 0
A47: PERSON PREPARING REPORT | E47: AUTHORIZED FINANCIAL OFFICER | L47: BSCC Supplier Data - Internal Use Only
E48: By checking the box below, I hereby certify that I am the authorized financial officer of the herein named agency. I further certify that I have not violated any of the provisions of Section 1090 of the Government Code in incurring the expenditures reported in this invoice, nor in any other way; that Sections 1090 through 1096 of the Government Code will not be violated in any way in the expenditure of funds pursuant to this invoice; that statement of funds above is true, correct, and in accordance with program provisions in all respects; and that all expenditures submitted after the expiration date of this contract are for the purpose of substantiating obligations legally incurred during the contract period. Furthermore, by submitting this invoice, I acknowledge that it must adhere to all of the requirements in the BSCC Grant Administration Guide, including any updates to the Guide during the term of the grant agreement.
L49: 00000014996
A50: Name, Title | L50: Supplier ID
L51: COUNTYOFFR-006
A52: Phone | L52: Supplier Name
L53: 2281 Tulare Street, Room 304
A54: Email | L54: Address Line 1
L55: Fresno, CA 93721
A56: Date | L56: Address Line 2
E59: Name, Title
E61: Phone
E63: Date
F64: Please initial here to certify the submission of this invoice.
A66: BSCC USE ONLY
A67: Date Received: | G67: Approved By:
I68: BSCC Field Representative, Date

Sheet INVOICE 7
A1: STATE OF CALIFORNIA | L1: Purchase Authority | N1: ='INVOICE 1'!N1 -> BSCC 5227
A2: BOARD OF STATE AND COMMUNITY CORRECTIONS | L2: Purchase Order: | N2: ='INVOICE 1'!N2 -> 5227-0000003918
A3: Financial Invoice Form: BSCC 201 (Revised 01/2023)
A5: Program: | B5: ='INVOICE 1'!B5 -> Public Defense Pilot Program | K5: Please Note: The California State Controller's Office will send all checks directly to the address listed in the "BSCC Vendor Data" section at the bottom of this invoice.
A7: Grantee: | B7: ='INVOICE 1'!B7 -> County of Fresno | F7: Project Title:
A9: Contract #: | B9: ='INVOICE 1'!B9 -> BSCC 323-21 | D9: Term: | E9: ='INVOICE 1'!E9 -> 2022-03-01 | F9: TO | G9: ='INVOICE 1'!G9 -> 2025-03-01 | L9: Invoicing Frequency | M9: Quarterly
A11: Invoice #: | B11: 7 PDPP 21 | D11: Reporting Period: | E11: 2023-10-01 | F11: TO | G11: 2023-12-31 | H11: Due: | I11: 2024-02-15 | L11: Final Invoice (Y/N): | M11: No
A13: Line Items | B13: Budget | E13: Prior Expenditures | H13: This Reporting Period | K13: Balance | N13: Advance Disbursements
B14: Grant Funds | C14: Project Income | D14: TOTAL | E14: Grant Funds | F14: Project Income | G14: TOTAL | H14: Grant Funds | I14: Project Income | J14: TOTAL | K14: Grant Funds | L14: Project Income | M14: TOTAL
A15: Salaries & Benefits | B15: ='INVOICE 6'!B15 -> 1783953 | C15: ='INVOICE 6'!C15 -> 0 | D15: =SUM(B15:C15) -> 1783953 | E15: =SUM('INVOICE 6'!E15,'INVOICE 6'!H15) -> 372686 | F15: =SUM('INVOICE 6'!F15,'INVOICE 6'!I15) -> 0 | G15: =SUM(E15:F15) -> 372686 | H15: 0 | I15: 0 | J15: =SUM(H15:I15) -> 0 | K15: =B15-E15-H15 -> 1411267 | L15: 0 | M15: =SUM(K15:L15) -> 1411267 | N15: 1st Advance 5/23/2022
A16: Services & Supplies | B16: ='INVOICE 6'!B16 -> 21723.38 | C16: ='INVOICE 6'!C16 -> 0 | D16: 21723.38 | E16: =SUM('INVOICE 6'!E16,'INVOICE 6'!H16) -> 6729 | F16: =SUM('INVOICE 6'!F16,'INVOICE 6'!I16) -> 0 | G16: =SUM(E16:F16) -> 6729 | H16: 0 | I16: 0 | J16: 0 | K16: 14994.38 | L16: 0 | M16: 14994.38 | N16: ='1st Advance Payment'!K20 -> 1204165
A17: Professional Services or Public Agency Subcontract | B17: ='INVOICE 6'!B17 -> 277838.97 | C17: ='INVOICE 6'!C17 -> 0 | D17: 277838.97 | E17: =SUM('INVOICE 6'!E17,'INVOICE 6'!H17) -> 67912.57 | F17: =SUM('INVOICE 6'!F17,'INVOICE 6'!I17) -> 0 | G17: =SUM(E17:F17) -> 67912.57 | H17: 0 | I17: 0 | J17: 0 | K17: 209926.4 | L17: 0 | M17: 209926.4 | N17: ='INVOICE 5'!N17 -> 2nd Advance [enter date]
A18: NGO Subcontracts | B18: ='INVOICE 6'!B18 -> 0 | C18: ='INVOICE 6'!C18 -> 0 | D18: 0 | E18: =SUM('INVOICE 6'!E18,'INVOICE 6'!H18) -> 0 | F18: =SUM('INVOICE 6'!F18,'INVOICE 6'!I18) -> 0 | G18: 0 | H18: 0 | I18: 0 | J18: 0 | K18: 0 | L18: 0 | M18: 0 | N18: 1185405.69
A19: Equipment / Fixed Assets | B19: ='INVOICE 6'!B19 -> 0 | C19: ='INVOICE 6'!C19 -> 0 | D19: 0 | E19: =SUM('INVOICE 6'!E19,'INVOICE 6'!H19) -> 0 | F19: =SUM('INVOICE 6'!F19,'INVOICE 6'!I19) -> 0 | G19: 0 | H19: 0 | I19: 0 | J19: 0 | K19: 0 | L19: 0 | M19: 0
A20: Other | B20: ='INVOICE 6'!B20 -> 10345 | C20: ='INVOICE 6'!C20 -> 0 | D20: =SUM(B20:C20) -> 10345 | E20: =SUM('INVOICE 6'!E20,'INVOICE 6'!H20) -> 365 | F20: =SUM('INVOICE 6'!F20,'INVOICE 6'!I20) -> 0 | G20: 365 | H20: 0 | I20: 0 | J20: 0 | K20: 9980 | L20: 0 | M20: 9980
A21: Indirect Costs | B21: ='INVOICE 6'!B21 -> 295710.34 | C21: ='INVOICE 6'!C21 -> 0 | D21: 295710.34 | E21: =SUM('INVOICE 6'!E21,'INVOICE 6'!H21) -> 37941 | F21: =SUM('INVOICE 6'!F21,'INVOICE 6'!I21) -> 0 | G21: 37941 | H21: 0 | I21: 0 | J21: 0 | K21: 257769.34 | L21: 0 | M21: 257769.34
A22: TOTAL | B22: =SUM(B15:B21) -> 2389570.69 | C22: =SUM(C15:C21) -> 0 | D22: =SUM(D15:D21) -> 2389570.69 | E22: =SUM(E15:E21) -> 485633.57 | F22: 0 | G22: 485633.57 | H22: 0 | I22: =SUM(I15:I21) -> 0 | J22: 0 | K22: 1903937.12 | L22: 0 | M22: 1903937.12 | N22: =SUM(N16+N18+N20) -> 2389570.69
A24: Project Income | C24: Income reported to date | D24: ='INVOICE 1'!D24+'INVOICE 1'!I24 -> 0 | F24: Prior allocated income | G24: ='INVOICE 1'!I24 -> 0 | H24: This Period | I24: 0 | L24: Unallocated income balance | M24: =D24-G24 -> 0
C26: Grant funds expended to date: | D26: =SUM(E22,H22) -> 485633.57 | G26: Grant funds claimed this period: | H26: =H22 -> 0 | L26: Percent of total disbursed
C27: Project Income to date: | D27: =SUM(F22,I22) -> 0 | F27: Advance Disbursement Balance | H27: =N22-D26 -> 1903937.12 | L27: funds expended to date: | N27: =D26/N22 -> 0.2032304681
D31: Expenditure Descriptions - Units / $ Amounts | L31: Comments
A32: Salaries & Benefits | B32: Grant Funds | C32: =H15 -> 0
B33: Project Income | C33: =I15 -> 0
A34: Services & Supplies | B34: Grant Funds | C34: =H16 -> 0
B35: Project Income | C35: =I16 -> 0
A36: Professional Services or Public Agency Subcontracts | B36: Grant Funds | C36: =H17 -> 0
B37: Project Income | C37: =I17 -> 0
A38: NGO Subcontracts | B38: Grant Funds | C38: =H18 -> 0
B39: Project Income | C39: =I18 -> 0
A40: Equipment / Fixed Assets | B40: Grant Funds | C40: =H19 -> 0
B41: Project Income | C41: =I19 -> 0
A42: Other | B42: Grant Funds | C42: =H20 -> 0
B43: Project Income | C43: =I20 -> 0
A44: Indirect Costs | B44: Grant Funds | C44: =H21 -> 0
B45: Project Income | C45: =I21 -> 0
A46: Project Income | C46: =I24 -> 0
A47: PERSON PREPARING REPORT | E47: AUTHORIZED FINANCIAL OFFICER | L47: BSCC Supplier Data - Internal Use Only
E48: By checking the box below, I hereby certify that I am the authorized financial officer of the herein named agency. I further certify that I have not violated any of the provisions of Section 1090 of the Government Code in incurring the expenditures reported in this invoice, nor in any other way; that Sections 1090 through 1096 of the Government Code will not be violated in any way in the expenditure of funds pursuant to this invoice; that statement of funds above is true, correct, and in accordance with program provisions in all respects; and that all expenditures submitted after the expiration date of this contract are for the purpose of substantiating obligations legally incurred during the contract period. Furthermore, by submitting this invoice, I acknowledge that it must adhere to all of the requirements in the BSCC Grant Administration Guide, including any updates to the Guide during the term of the grant agreement.
L49: 00000014996
A50: Name, Title | L50: Supplier ID
L51: COUNTYOFFR-006
A52: Phone | L52: Supplier Name
L53: 2281 Tulare Street, Room 304
A54: Email | L54: Address Line 1
L55: Fresno, CA 93721
A56: Date | L56: Address Line 2
E59: Name, Title
E61: Phone
E63: Date
F64: Please initial here to certify the submission of this invoice.
A66: BSCC USE ONLY
A67: Date Received: | G67: Approved By:
I68: BSCC Field Representative, Date

Sheet INVOICE 8
A1: STATE OF CALIFORNIA | L1: Purchase Authority | N1: ='INVOICE 1'!N1 -> BSCC 5227
A2: BOARD OF STATE AND COMMUNITY CORRECTIONS | L2: Purchase Order: | N2: ='INVOICE 1'!N2 -> 5227-0000003918
A3: Financial Invoice Form: BSCC 201 (Revised 01/2023)
A5: Program: | B5: ='INVOICE 1'!B5 -> Public Defense Pilot Program | K5: Please Note: The California State Controller's Office will send all checks directly to the address listed in the "BSCC Vendor Data" section at the bottom of this invoice.
A7: Grantee: | B7: ='INVOICE 1'!B7 -> County of Fresno | F7: Project Title:
A9: Contract #: | B9: ='INVOICE 1'!B9 -> BSCC 323-21 | D9: Term: | E9: ='INVOICE 1'!E9 -> 2022-03-01 | F9: TO | G9: ='INVOICE 1'!G9 -> 2025-03-01 | L9: Invoicing Frequency | M9: Quarterly
A11: Invoice #: | B11: 8 PDPP 21 | D11: Reporting Period: | E11: 2024-01-01 | F11: TO | G11: 2024-03-31 | H11: Due: | I11: 2024-05-15 | L11: Final Invoice (Y/N): | M11: No
A13: Line Items | B13: Budget | E13: Prior Expenditures | H13: This Reporting Period | K13: Balance | N13: Advance Disbursements
B14: Grant Funds | C14: Project Income | D14: TOTAL | E14: Grant Funds | F14: Project Income | G14: TOTAL | H14: Grant Funds | I14: Project Income | J14: TOTAL | K14: Grant Funds | L14: Project Income | M14: TOTAL
A15: Salaries & Benefits | B15: ='INVOICE 7'!B15 -> 1783953 | C15: ='INVOICE 7'!C15 -> 0 | D15: =SUM(B15:C15) -> 1783953 | E15: =SUM('INVOICE 7'!E15,'INVOICE 7'!H15) -> 372686 | F15: =SUM('INVOICE 7'!F15,'INVOICE 7'!I15) -> 0 | G15: =SUM(E15:F15) -> 372686 | H15: 0 | I15: 0 | J15: =SUM(H15:I15) -> 0 | K15: =B15-E15-H15 -> 1411267 | L15: 0 | M15: =SUM(K15:L15) -> 1411267 | N15: 1st Advance 5/23/2022
A16: Services & Supplies | B16: ='INVOICE 7'!B16 -> 21723.38 | C16: ='INVOICE 7'!C16 -> 0 | D16: 21723.38 | E16: =SUM('INVOICE 7'!E16,'INVOICE 7'!H16) -> 6729 | F16: =SUM('INVOICE 7'!F16,'INVOICE 7'!I16) -> 0 | G16: =SUM(E16:F16) -> 6729 | H16: 0 | I16: 0 | J16: 0 | K16: 14994.38 | L16: 0 | M16: 14994.38 | N16: ='1st Advance Payment'!K20 -> 1204165
A17: Professional Services or Public Agency Subcontract | B17: ='INVOICE 7'!B17 -> 277838.97 | C17: ='INVOICE 7'!C17 -> 0 | D17: 277838.97 | E17: =SUM('INVOICE 7'!E17,'INVOICE 7'!H17) -> 67912.57 | F17: =SUM('INVOICE 7'!F17,'INVOICE 7'!I17) -> 0 | G17: =SUM(E17:F17) -> 67912.57 | H17: 0 | I17: 0 | J17: 0 | K17: 209926.4 | L17: 0 | M17: 209926.4 | N17: ='INVOICE 5'!N17 -> 2nd Advance [enter date]
A18: NGO Subcontracts | B18: ='INVOICE 7'!B18 -> 0 | C18: ='INVOICE 7'!C18 -> 0 | D18: 0 | E18: =SUM('INVOICE 7'!E18,'INVOICE 7'!H18) -> 0 | F18: =SUM('INVOICE 7'!F18,'INVOICE 7'!I18) -> 0 | G18: 0 | H18: 0 | I18: 0 | J18: 0 | K18: 0 | L18: 0 | M18: 0 | N18: 1185405.69
A19: Equipment / Fixed Assets | B19: ='INVOICE 7'!B19 -> 0 | C19: ='INVOICE 7'!C19 -> 0 | D19: 0 | E19: =SUM('INVOICE 7'!E19,'INVOICE 7'!H19) -> 0 | F19: =SUM('INVOICE 7'!F19,'INVOICE 7'!I19) -> 0 | G19: 0 | H19: 0 | I19: 0 | J19: 0 | K19: 0 | L19: 0 | M19: 0
A20: Other | B20: ='INVOICE 7'!B20 -> 10345 | C20: ='INVOICE 7'!C20 -> 0 | D20: =SUM(B20:C20) -> 10345 | E20: =SUM('INVOICE 7'!E20,'INVOICE 7'!H20) -> 365 | F20: =SUM('INVOICE 7'!F20,'INVOICE 7'!I20) -> 0 | G20: 365 | H20: 0 | I20: 0 | J20: 0 | K20: 9980 | L20: 0 | M20: 9980
A21: Indirect Costs | B21: ='INVOICE 7'!B21 -> 295710.34 | C21: ='INVOICE 7'!C21 -> 0 | D21: 295710.34 | E21: =SUM('INVOICE 7'!E21,'INVOICE 7'!H21) -> 37941 | F21: =SUM('INVOICE 7'!F21,'INVOICE 7'!I21) -> 0 | G21: 37941 | H21: 0 | I21: 0 | J21: 0 | K21: 257769.34 | L21: 0 | M21: 257769.34
A22: TOTAL | B22: =SUM(B15:B21) -> 2389570.69 | C22: =SUM(C15:C21) -> 0 | D22: =SUM(D15:D21) -> 2389570.69 | E22: =SUM(E15:E21) -> 485633.57 | F22: 0 | G22: 485633.57 | H22: 0 | I22: =SUM(I15:I21) -> 0 | J22: 0 | K22: 1903937.12 | L22: 0 | M22: 1903937.12 | N22: =SUM(N16+N18+N20) -> 2389570.69
A24: Project Income | C24: Income reported to date | D24: ='INVOICE 1'!D24+'INVOICE 1'!I24 -> 0 | F24: Prior allocated income | G24: ='INVOICE 1'!I24 -> 0 | H24: This Period | I24: 0 | L24: Unallocated income balance | M24: =D24-G24 -> 0
C26: Grant funds expended to date: | D26: =SUM(E22,H22) -> 485633.57 | G26: Grant funds claimed this period: | H26: =H22 -> 0 | L26: Percent of total disbursed
C27: Project Income to date: | D27: =SUM(F22,I22) -> 0 | F27: Advance Disbursement Balance | H27: =N22-D26 -> 1903937.12 | L27: funds expended to date: | N27: =D26/N22 -> 0.2032304681
D31: Expenditure Descriptions - Units / $ Amounts | L31: Comments
A32: Salaries & Benefits | B32: Grant Funds | C32: =H15 -> 0
B33: Project Income | C33: =I15 -> 0
A34: Services & Supplies | B34: Grant Funds | C34: =H16 -> 0
B35: Project Income | C35: =I16 -> 0
A36: Professional Services or Public Agency Subcontracts | B36: Grant Funds | C36: =H17 -> 0
B37: Project Income | C37: =I17 -> 0
A38: NGO Subcontracts | B38: Grant Funds | C38: =H18 -> 0
B39: Project Income | C39: =I18 -> 0
A40: Equipment / Fixed Assets | B40: Grant Funds | C40: =H19 -> 0
B41: Project Income | C41: =I19 -> 0
A42: Other | B42: Grant Funds | C42: =H20 -> 0
B43: Project Income | C43: =I20 -> 0
A44: Indirect Costs | B44: Grant Funds | C44: =H21 -> 0
B45: Project Income | C45: =I21 -> 0
A46: Project Income | C46: =I24 -> 0
A47: PERSON PREPARING REPORT | E47: AUTHORIZED FINANCIAL OFFICER | L47: BSCC Supplier Data - Internal Use Only
E48: By checking the box below, I hereby certify that I am the authorized financial officer of the herein named agency. I further certify that I have not violated any of the provisions of Section 1090 of the Government Code in incurring the expenditures reported in this invoice, nor in any other way; that Sections 1090 through 1096 of the Government Code will not be violated in any way in the expenditure of funds pursuant to this invoice; that statement of funds above is true, correct, and in accordance with program provisions in all respects; and that all expenditures submitted after the expiration date of this contract are for the purpose of substantiating obligations legally incurred during the contract period. Furthermore, by submitting this invoice, I acknowledge that it must adhere to all of the requirements in the BSCC Grant Administration Guide, including any updates to the Guide during the term of the grant agreement.
L49: 00000014996
A50: Name, Title | L50: Supplier ID
L51: COUNTYOFFR-006
A52: Phone | L52: Supplier Name
L53: 2281 Tulare Street, Room 304
A54: Email | L54: Address Line 1
L55: Fresno, CA 93721
A56: Date | L56: Address Line 2
E59: Name, Title
E61: Phone
E63: Date
F64: Please initial here to certify the submission of this invoice.
A66: BSCC USE ONLY
A67: Date Received: | G67: Approved By:
I68: BSCC Field Representative, Date

Sheet 3rd Advance Payment
A1: STATE OF CALIFORNIA | J1: Purchase Authority | L1: BSCC 5229
A2: BOARD OF STATE AND COMMUNITY CORRECTIONS | J2: Purchase Order: | L2: TBD
A3: Advance Payment Invoice: BSCC 201A (Revised 01/2023)
B6: Program: | C6: ='INVOICE 1'!B5 -> Public Defense Pilot Program | H6: Grantee: | I6: ='INVOICE 1'!B7 -> County of Fresno
B8: Contract #: | C8: ='INVOICE 1'!B9 -> BSCC 323-21 | H8: Address
J9: Address Line 1
B10: Term: | C10: ='INVOICE 1'!E9 -> 2022-03-01 | D10: TO | E10: ='INVOICE 1'!G9 -> 2025-03-01
J11: Address Line 2
B13: Advance Payment # | G13: Please Note: The California State Controller's Office will send all checks directly to the address listed in the "BSCC Vendor Data" section at the bottom of this invoice.
B15: Effective Invoice #
A18: Advance Payment Invoice
J19: Total Grant Award: | K19: 0
J20: Advance Total: | K20: 0
J21: Grant Award Balance: | K21: 0
B25: PERSON PREPARING REPORT | G25: AUTHORIZED FINANCIAL OFFICER
G26: I hereby certify that I am the authorized financial officer of the herein named agency. I further certify that I have not violated any of the provisions of Section 1090 of the Government Code in incurring the expenditures reported in this invoice, nor in any other way; that Sections 1090 through 1096 of the Government Code will not be violated in any way in the expenditure of funds pursuant to this invoice; that statement of funds above is true, correct, and in accordance with program provisions in all respects; and that all expenditures submitted after the expiration date of this contract are for the purpose of substantiating obligations legally incurred during the contract period. Furthermore, by submitting this invoice, I acknowledge that it must adhere to all of the requirements in the BSCC Grant Administration Guide, including any updates to the Guide during the term of the grant agreement.
B27: Name, Title
B29: Phone
B31: Email
B33: Date
G36: Name, Title
G38: Phone
G40: Email
G42: Date
G44: Signature
H45: Please initial here to certify the submission of this invoice.
A47: BSCC USE ONLY
A48: Date Received: | G48: Approved By:
H49: BSCC Field Representative, Date

Sheet INVOICE 9
A1: STATE OF CALIFORNIA | L1: Purchase Authority | N1: ='INVOICE 1'!N1 -> BSCC 5227
A2: BOARD OF STATE AND COMMUNITY CORRECTIONS | L2: Purchase Order: | N2: ='INVOICE 1'!N2 -> 5227-0000003918
A3: Financial Invoice Form: BSCC 201 (Revised 01/2023)
A5: Program: | B5: ='INVOICE 1'!B5 -> Public Defense Pilot Program | K5: Please Note: The California State Controller's Office will send all checks directly to the address listed in the "BSCC Vendor Data" section at the bottom of this invoice.
A7: Grantee: | B7: ='INVOICE 1'!B7 -> County of Fresno | F7: Project Title:
A9: Contract #: | B9: ='INVOICE 1'!B9 -> BSCC 323-21 | D9: Term: | E9: ='INVOICE 1'!E9 -> 2022-03-01 | F9: TO | G9: ='INVOICE 1'!G9 -> 2025-03-01 | L9: Invoicing Frequency | M9: Quarterly
A11: Invoice #: | B11: 9 PDPP 21 | D11: Reporting Period: | E11: 2024-04-01 | F11: TO | G11: 2024-06-30 | H11: Due: | I11: 2024-08-15 | L11: Final Invoice (Y/N): | M11: No
A13: Line Items | B13: Budget | E13: Prior Expenditures | H13: This Reporting Period | K13: Balance | N13: Advance Disbursements
B14: Grant Funds | C14: Project Income | D14: TOTAL | E14: Grant Funds | F14: Project Income | G14: TOTAL | H14: Grant Funds | I14: Project Income | J14: TOTAL | K14: Grant Funds | L14: Project Income | M14: TOTAL
A15: Salaries & Benefits | B15: ='INVOICE 8'!B15 -> 1783953 | C15: ='INVOICE 8'!C15 -> 0 | D15: =SUM(B15:C15) -> 1783953 | E15: =SUM('INVOICE 8'!E15,'INVOICE 8'!H15) -> 372686 | F15: =SUM('INVOICE 8'!F15,'INVOICE 8'!I15) -> 0 | G15: =SUM(E15:F15) -> 372686 | H15: 0 | I15: 0 | J15: =SUM(H15:I15) -> 0 | K15: =B15-E15-H15 -> 1411267 | L15: 0 | M15: =SUM(K15:L15) -> 1411267 | N15: 1st Advance 5/23/2022
A16: Services & Supplies | B16: ='INVOICE 8'!B16 -> 21723.38 | C16: ='INVOICE 8'!C16 -> 0 | D16: 21723.38 | E16: =SUM('INVOICE 8'!E16,'INVOICE 8'!H16) -> 6729 | F16: =SUM('INVOICE 8'!F16,'INVOICE 8'!I16) -> 0 | G16: =SUM(E16:F16) -> 6729 | H16: 0 | I16: 0 | J16: 0 | K16: 14994.38 | L16: 0 | M16: 14994.38 | N16: ='1st Advance Payment'!K20 -> 1204165
A17: Professional Services or Public Agency Subcontract | B17: ='INVOICE 8'!B17 -> 277838.97 | C17: ='INVOICE 8'!C17 -> 0 | D17: 277838.97 | E17: =SUM('INVOICE 8'!E17,'INVOICE 8'!H17) -> 67912.57 | F17: =SUM('INVOICE 8'!F17,'INVOICE 8'!I17) -> 0 | G17: =SUM(E17:F17) -> 67912.57 | H17: 0 | I17: 0 | J17: 0 | K17: 209926.4 | L17: 0 | M17: 209926.4 | N17: ='INVOICE 5'!N17 -> 2nd Advance [enter date]
A18: NGO Subcontracts | B18: ='INVOICE 8'!B18 -> 0 | C18: ='INVOICE 8'!C18 -> 0 | D18: 0 | E18: =SUM('INVOICE 8'!E18,'INVOICE 8'!H18) -> 0 | F18: =SUM('INVOICE 8'!F18,'INVOICE 8'!I18) -> 0 | G18: 0 | H18: 0 | I18: 0 | J18: 0 | K18: 0 | L18: 0 | M18: 0 | N18: 1185405.69
A19: Equipment / Fixed Assets | B19: ='INVOICE 8'!B19 -> 0 | C19: ='INVOICE 8'!C19 -> 0 | D19: 0 | E19: =SUM('INVOICE 8'!E19,'INVOICE 8'!H19) -> 0 | F19: =SUM('INVOICE 8'!F19,'INVOICE 8'!I19) -> 0 | G19: 0 | H19: 0 | I19: 0 | J19: 0 | K19: 0 | L19: 0 | M19: 0 | N19: 3rd Advance [enter date}
A20: Other | B20: ='INVOICE 8'!B20 -> 10345 | C20: ='INVOICE 8'!C20 -> 0 | D20: =SUM(B20:C20) -> 10345 | E20: =SUM('INVOICE 8'!E20,'INVOICE 8'!H20) -> 365 | F20: =SUM('INVOICE 8'!F20,'INVOICE 8'!I20) -> 0 | G20: 365 | H20: 0 | I20: 0 | J20: 0 | K20: 9980 | L20: 0 | M20: 9980
A21: Indirect Costs | B21: ='INVOICE 8'!B21 -> 295710.34 | C21: ='INVOICE 8'!C21 -> 0 | D21: 295710.34 | E21: =SUM('INVOICE 8'!E21,'INVOICE 8'!H21) -> 37941 | F21: =SUM('INVOICE 8'!F21,'INVOICE 8'!I21) -> 0 | G21: 37941 | H21: 0 | I21: 0 | J21: 0 | K21: 257769.34 | L21: 0 | M21: 257769.34
A22: TOTAL | B22: =SUM(B15:B21) -> 2389570.69 | C22: =SUM(C15:C21) -> 0 | D22: =SUM(D15:D21) -> 2389570.69 | E22: =SUM(E15:E21) -> 485633.57 | F22: 0 | G22: 485633.57 | H22: 0 | I22: =SUM(I15:I21) -> 0 | J22: 0 | K22: 1903937.12 | L22: 0 | M22: 1903937.12 | N22: =SUM(N16+N18+N20) -> 2389570.69
A24: Project Income | C24: Income reported to date | D24: ='INVOICE 1'!D24+'INVOICE 1'!I24 -> 0 | F24: Prior allocated income | G24: ='INVOICE 1'!I24 -> 0 | H24: This Period | I24: 0 | L24: Unallocated income balance | M24: =D24-G24 -> 0
C26: Grant funds expended to date: | D26: =SUM(E22,H22) -> 485633.57 | G26: Grant funds claimed this period: | H26: =H22 -> 0 | L26: Percent of total disbursed
C27: Project Income to date: | D27: =SUM(F22,I22) -> 0 | F27: Advance Disbursement Balance | H27: =N22-D26 -> 1903937.12 | L27: funds expended to date: | N27: =D26/N22 -> 0.2032304681
D31: Expenditure Descriptions - Units / $ Amounts | L31: Comments
A32: Salaries & Benefits | B32: Grant Funds | C32: =H15 -> 0
B33: Project Income | C33: =I15 -> 0
A34: Services & Supplies | B34: Grant Funds | C34: =H16 -> 0
B35: Project Income | C35: =I16 -> 0
A36: Professional Services or Public Agency Subcontracts | B36: Grant Funds | C36: =H17 -> 0
B37: Project Income | C37: =I17 -> 0
A38: NGO Subcontracts | B38: Grant Funds | C38: =H18 -> 0
B39: Project Income | C39: =I18 -> 0
A40: Equipment / Fixed Assets | B40: Grant Funds | C40: =H19 -> 0
B41: Project Income | C41: =I19 -> 0
A42: Other | B42: Grant Funds | C42: =H20 -> 0
B43: Project Income | C43: =I20 -> 0
A44: Indirect Costs | B44: Grant Funds | C44: =H21 -> 0
B45: Project Income | C45: =I21 -> 0
A46: Project Income | C46: =I24 -> 0
A47: PERSON PREPARING REPORT | E47: AUTHORIZED FINANCIAL OFFICER | L47: BSCC Supplier Data - Internal Use Only
E48: By checking the box below, I hereby certify that I am the authorized financial officer of the herein named agency. I further certify that I have not violated any of the provisions of Section 1090 of the Government Code in incurring the expenditures reported in this invoice, nor in any other way; that Sections 1090 through 1096 of the Government Code will not be violated in any way in the expenditure of funds pursuant to this invoice; that statement of funds above is true, correct, and in accordance with program provisions in all respects; and that all expenditures submitted after the expiration date of this contract are for the purpose of substantiating obligations legally incurred during the contract period. Furthermore, by submitting this invoice, I acknowledge that it must adhere to all of the requirements in the BSCC Grant Administration Guide, including any updates to the Guide during the term of the grant agreement.
L49: 00000014996
A50: Name, Title | L50: Supplier ID
L51: COUNTYOFFR-006
A52: Phone | L52: Supplier Name
L53: 2281 Tulare Street, Room 304
A54: Email | L54: Address Line 1
L55: Fresno, CA 93721
A56: Date | L56: Address Line 2
E59: Name, Title
E61: Phone
E63: Date
F64: Please initial here to certify the submission of this invoice.
A66: BSCC USE ONLY
A67: Date Received: | G67: Approved By:
I68: BSCC Field Representative, Date

Sheet INVOICE 10
A1: STATE OF CALIFORNIA | L1: Purchase Authority | N1: ='INVOICE 1'!N1 -> BSCC 5227
A2: BOARD OF STATE AND COMMUNITY CORRECTIONS | L2: Purchase Order: | N2: ='INVOICE 1'!N2 -> 5227-0000003918
A3: Financial Invoice Form: BSCC 201 (Revised 01/2023)
A5: Program: | B5: ='INVOICE 1'!B5 -> Public Defense Pilot Program | K5: Please Note: The California State Controller's Office will send all checks directly to the address listed in the "BSCC Vendor Data" section at the bottom of this invoice.
A7: Grantee: | B7: ='INVOICE 1'!B7 -> County of Fresno | F7: Project Title:
A9: Contract #: | B9: ='INVOICE 1'!B9 -> BSCC 323-21 | D9: Term: | E9: ='INVOICE 1'!E9 -> 2022-03-01 | F9: TO | G9: ='INVOICE 1'!G9 -> 2025-03-01 | L9: Invoicing Frequency | M9: Quarterly
A11: Invoice #: | B11: 10 PDPP 21 | D11: Reporting Period: | E11: 2024-07-01 | F11: TO | G11: 2024-09-30 | H11: Due: | I11: 2024-11-15 | L11: Final Invoice (Y/N): | M11: No
A13: Line Items | B13: Budget | E13: Prior Expenditures | H13: This Reporting Period | K13: Balance | N13: Advance Disbursements
B14: Grant Funds | C14: Project Income | D14: TOTAL | E14: Grant Funds | F14: Project Income | G14: TOTAL | H14: Grant Funds | I14: Project Income | J14: TOTAL | K14: Grant Funds | L14: Project Income | M14: TOTAL
A15: Salaries & Benefits | B15: ='INVOICE 9'!B15 -> 1783953 | C15: ='INVOICE 9'!C15 -> 0 | D15: =SUM(B15:C15) -> 1783953 | E15: =SUM('INVOICE 9'!E15,'INVOICE 9'!H15) -> 372686 | F15: =SUM('INVOICE 9'!F15,'INVOICE 9'!I15) -> 0 | G15: =SUM(E15:F15) -> 372686 | H15: 0 | I15: 0 | J15: =SUM(H15:I15) -> 0 | K15: =B15-E15-H15 -> 1411267 | L15: 0 | M15: =SUM(K15:L15) -> 1411267 | N15: 1st Advance 5/23/2022
A16: Services & Supplies | B16: ='INVOICE 9'!B16 -> 21723.38 | C16: ='INVOICE 9'!C16 -> 0 | D16: 21723.38 | E16: =SUM('INVOICE 9'!E16,'INVOICE 9'!H16) -> 6729 | F16: =SUM('INVOICE 9'!F16,'INVOICE 9'!I16) -> 0 | G16: =SUM(E16:F16) -> 6729 | H16: 0 | I16: 0 | J16: 0 | K16: 14994.38 | L16: 0 | M16: 14994.38 | N16: ='1st Advance Payment'!K20 -> 1204165
A17: Professional Services or Public Agency Subcontract | B17: ='INVOICE 9'!B17 -> 277838.97 | C17: ='INVOICE 9'!C17 -> 0 | D17: 277838.97 | E17: =SUM('INVOICE 9'!E17,'INVOICE 9'!H17) -> 67912.57 | F17: =SUM('INVOICE 9'!F17,'INVOICE 9'!I17) -> 0 | G17: =SUM(E17:F17) -> 67912.57 | H17: 0 | I17: 0 | J17: 0 | K17: 209926.4 | L17: 0 | M17: 209926.4 | N17: ='INVOICE 5'!N17 -> 2nd Advance [enter date]
A18: NGO Subcontracts | B18: ='INVOICE 9'!B18 -> 0 | C18: ='INVOICE 9'!C18 -> 0 | D18: 0 | E18: =SUM('INVOICE 9'!E18,'INVOICE 9'!H18) -> 0 | F18: =SUM('INVOICE 9'!F18,'INVOICE 9'!I18) -> 0 | G18: 0 | H18: 0 | I18: 0 | J18: 0 | K18: 0 | L18: 0 | M18: 0 | N18: 1185405.69
A19: Equipment / Fixed Assets | B19: ='INVOICE 9'!B19 -> 0 | C19: ='INVOICE 9'!C19 -> 0 | D19: 0 | E19: =SUM('INVOICE 9'!E19,'INVOICE 9'!H19) -> 0 | F19: =SUM('INVOICE 9'!F19,'INVOICE 9'!I19) -> 0 | G19: 0 | H19: 0 | I19: 0 | J19: 0 | K19: 0 | L19: 0 | M19: 0 | N19: ='INVOICE 9'!N19 -> 3rd Advance [enter date}
A20: Other | B20: ='INVOICE 9'!B20 -> 10345 | C20: ='INVOICE 9'!C20 -> 0 | D20: =SUM(B20:C20) -> 10345 | E20: =SUM('INVOICE 9'!E20,'INVOICE 9'!H20) -> 365 | F20: =SUM('INVOICE 9'!F20,'INVOICE 9'!I20) -> 0 | G20: 365 | H20: 0 | I20: 0 | J20: 0 | K20: 9980 | L20: 0 | M20: 9980 | N20: ='INVOICE 9'!N20 -> 0
A21: Indirect Costs | B21: ='INVOICE 9'!B21 -> 295710.34 | C21: ='INVOICE 9'!C21 -> 0 | D21: 295710.34 | E21: =SUM('INVOICE 9'!E21,'INVOICE 9'!H21) -> 37941 | F21: =SUM('INVOICE 9'!F21,'INVOICE 9'!I21) -> 0 | G21: 37941 | H21: 0 | I21: 0 | J21: 0 | K21: 257769.34 | L21: 0 | M21: 257769.34
A22: TOTAL | B22: =SUM(B15:B21) -> 2389570.69 | C22: =SUM(C15:C21) -> 0 | D22: =SUM(D15:D21) -> 2389570.69 | E22: =SUM(E15:E21) -> 485633.57 | F22: 0 | G22: 485633.57 | H22: 0 | I22: =SUM(I15:I21) -> 0 | J22: 0 | K22: 1903937.12 | L22: 0 | M22: 1903937.12 | N22: =SUM(N16+N18+N20) -> 2389570.69
A24: Project Income | C24: Income reported to date | D24: ='INVOICE 1'!D24+'INVOICE 1'!I24 -> 0 | F24: Prior allocated income | G24: ='INVOICE 1'!I24 -> 0 | H24: This Period | I24: 0 | L24: Unallocated income balance | M24: =D24-G24 -> 0
C26: Grant funds expended to date: | D26: =SUM(E22,H22) -> 485633.57 | G26: Grant funds claimed this period: | H26: =H22 -> 0 | L26: Percent of total disbursed
C27: Project Income to date: | D27: =SUM(F22,I22) -> 0 | F27: Advance Disbursement Balance | H27: =N22-D26 -> 1903937.12 | L27: funds expended to date: | N27: =D26/N22 -> 0.2032304681
D31: Expenditure Descriptions - Units / $ Amounts | L31: Comments
A32: Salaries & Benefits | B32: Grant Funds | C32: =H15 -> 0
B33: Project Income | C33: =I15 -> 0
A34: Services & Supplies | B34: Grant Funds | C34: =H16 -> 0
B35: Project Income | C35: =I16 -> 0
A36: Professional Services or Public Agency Subcontracts | B36: Grant Funds | C36: =H17 -> 0
B37: Project Income | C37: =I17 -> 0
A38: NGO Subcontracts | B38: Grant Funds | C38: =H18 -> 0
B39: Project Income | C39: =I18 -> 0
A40: Equipment / Fixed Assets | B40: Grant Funds | C40: =H19 -> 0
B41: Project Income | C41: =I19 -> 0
A42: Other | B42: Grant Funds | C42: =H20 -> 0
B43: Project Income | C43: =I20 -> 0
A44: Indirect Costs | B44: Grant Funds | C44: =H21 -> 0
B45: Project Income | C45: =I21 -> 0
A46: Project Income | C46: =I24 -> 0
A47: PERSON PREPARING REPORT | E47: AUTHORIZED FINANCIAL OFFICER | L47: BSCC Supplier Data - Internal Use Only
E48: By checking the box below, I hereby certify that I am the authorized financial officer of the herein named agency. I further certify that I have not violated any of the provisions of Section 1090 of the Government Code in incurring the expenditures reported in this invoice, nor in any other way; that Sections 1090 through 1096 of the Government Code will not be violated in any way in the expenditure of funds pursuant to this invoice; that statement of funds above is true, correct, and in accordance with program provisions in all respects; and that all expenditures submitted after the expiration date of this contract are for the purpose of substantiating obligations legally incurred during the contract period. Furthermore, by submitting this invoice, I acknowledge that it must adhere to all of the requirements in the BSCC Grant Administration Guide, including any updates to the Guide during the term of the grant agreement.
L49: 00000014996
A50: Name, Title | L50: Supplier ID
L51: COUNTYOFFR-006
A52: Phone | L52: Supplier Name
L53: 2281 Tulare Street, Room 304
A54: Email | L54: Address Line 1
L55: Fresno, CA 93721
A56: Date | L56: Address Line 2
E59: Name, Title
E61: Phone
E63: Date
F64: Please initial here to certify the submission of this invoice.
A66: BSCC USE ONLY
A67: Date Received: | G67: Approved By:
I68: BSCC Field Representative, Date

Sheet INVOICE 11
A1: STATE OF CALIFORNIA | L1: Purchase Authority | N1: ='INVOICE 1'!N1 -> BSCC 5227
A2: BOARD OF STATE AND COMMUNITY CORRECTIONS | L2: Purchase Order: | N2: ='INVOICE 1'!N2 -> 5227-0000003918
A3: Financial Invoice Form: BSCC 201 (Revised 01/2023)
A5: Program: | B5: ='INVOICE 1'!B5 -> Public Defense Pilot Program | K5: Please Note: The California State Controller's Office will send all checks directly to the address listed in the "BSCC Vendor Data" section at the bottom of this invoice.
A7: Grantee: | B7: ='INVOICE 1'!B7 -> County of Fresno | F7: Project Title:
A9: Contract #: | B9: ='INVOICE 1'!B9 -> BSCC 323-21 | D9: Term: | E9: ='INVOICE 1'!E9 -> 2022-03-01 | F9: TO | G9: ='INVOICE 1'!G9 -> 2025-03-01 | L9: Invoicing Frequency | M9: Quarterly
A11: Invoice #: | B11: 11 PDPP 21 | D11: Reporting Period: | E11: 2024-10-01 | F11: TO | G11: 2025-01-01 | H11: Due: | I11: 2025-02-16 | L11: Final Invoice (Y/N): | M11: No
A13: Line Items | B13: Budget | E13: Prior Expenditures | H13: This Reporting Period | K13: Balance | N13: Advance Disbursements
B14: Grant Funds | C14: Project Income | D14: TOTAL | E14: Grant Funds | F14: Project Income | G14: TOTAL | H14: Grant Funds | I14: Project Income | J14: TOTAL | K14: Grant Funds | L14: Project Income | M14: TOTAL
A15: Salaries & Benefits | B15: ='INVOICE 10'!B15 -> 1783953 | C15: ='INVOICE 10'!C15 -> 0 | D15: =SUM(B15:C15) -> 1783953 | E15: =SUM('INVOICE 10'!E15,'INVOICE 10'!H15) -> 372686 | F15: =SUM('INVOICE 10'!F15,'INVOICE 10'!I15) -> 0 | G15: =SUM(E15:F15) -> 372686 | H15: 0 | I15: 0 | J15: =SUM(H15:I15) -> 0 | K15: =B15-E15-H15 -> 1411267 | L15: 0 | M15: =SUM(K15:L15) -> 1411267 | N15: 1st Advance 5/23/2022
A16: Services & Supplies | B16: ='INVOICE 10'!B16 -> 21723.38 | C16: ='INVOICE 10'!C16 -> 0 | D16: 21723.38 | E16: =SUM('INVOICE 10'!E16,'INVOICE 10'!H16) -> 6729 | F16: =SUM('INVOICE 10'!F16,'INVOICE 10'!I16) -> 0 | G16: =SUM(E16:F16) -> 6729 | H16: 0 | I16: 0 | J16: 0 | K16: 14994.38 | L16: 0 | M16: 14994.38 | N16: ='1st Advance Payment'!K20 -> 1204165
A17: Professional Services or Public Agency Subcontract | B17: ='INVOICE 10'!B17 -> 277838.97 | C17: ='INVOICE 10'!C17 -> 0 | D17: 277838.97 | E17: =SUM('INVOICE 10'!E17,'INVOICE 10'!H17) -> 67912.57 | F17: =SUM('INVOICE 10'!F17,'INVOICE 10'!I17) -> 0 | G17: =SUM(E17:F17) -> 67912.57 | H17: 0 | I17: 0 | J17: 0 | K17: 209926.4 | L17: 0 | M17: 209926.4 | N17: ='INVOICE 5'!N17 -> 2nd Advance [enter date]
A18: NGO Subcontracts | B18: ='INVOICE 10'!B18 -> 0 | C18: ='INVOICE 10'!C18 -> 0 | D18: 0 | E18: =SUM('INVOICE 10'!E18,'INVOICE 10'!H18) -> 0 | F18: =SUM('INVOICE 10'!F18,'INVOICE 10'!I18) -> 0 | G18: 0 | H18: 0 | I18: 0 | J18: 0 | K18: 0 | L18: 0 | M18: 0 | N18: 1185405.69
A19: Equipment / Fixed Assets | B19: ='INVOICE 10'!B19 -> 0 | C19: ='INVOICE 10'!C19 -> 0 | D19: 0 | E19: =SUM('INVOICE 10'!E19,'INVOICE 10'!H19) -> 0 | F19: =SUM('INVOICE 10'!F19,'INVOICE 10'!I19) -> 0 | G19: 0 | H19: 0 | I19: 0 | J19: 0 | K19: 0 | L19: 0 | M19: 0 | N19: ='INVOICE 9'!N19 -> 3rd Advance [enter date}
A20: Other | B20: ='INVOICE 10'!B20 -> 10345 | C20: ='INVOICE 10'!C20 -> 0 | D20: =SUM(B20:C20) -> 10345 | E20: =SUM('INVOICE 10'!E20,'INVOICE 10'!H20) -> 365 | F20: =SUM('INVOICE 10'!F20,'INVOICE 10'!I20) -> 0 | G20: 365 | H20: 0 | I20: 0 | J20: 0 | K20: 9980 | L20: 0 | M20: 9980 | N20: ='INVOICE 9'!N20 -> 0
A21: Indirect Costs | B21: ='INVOICE 10'!B21 -> 295710.34 | C21: ='INVOICE 10'!C21 -> 0 | D21: 295710.34 | E21: =SUM('INVOICE 10'!E21,'INVOICE 10'!H21) -> 37941 | F21: =SUM('INVOICE 10'!F21,'INVOICE 10'!I21) -> 0 | G21: 37941 | H21: 0 | I21: 0 | J21: 0 | K21: 257769.34 | L21: 0 | M21: 257769.34
A22: TOTAL | B22: =SUM(B15:B21) -> 2389570.69 | C22: =SUM(C15:C21) -> 0 | D22: =SUM(D15:D21) -> 2389570.69 | E22: =SUM(E15:E21) -> 485633.57 | F22: 0 | G22: 485633.57 | H22: 0 | I22: =SUM(I15:I21) -> 0 | J22: 0 | K22: 1903937.12 | L22: 0 | M22: 1903937.12 | N22: =SUM(N16+N18+N20) -> 2389570.69
A24: Project Income | C24: Income reported to date | D24: ='INVOICE 1'!D24+'INVOICE 1'!I24 -> 0 | F24: Prior allocated income | G24: ='INVOICE 1'!I24 -> 0 | H24: This Period | I24: 0 | L24: Unallocated income balance | M24: =D24-G24 -> 0
C26: Grant funds expended to date: | D26: =SUM(E22,H22) -> 485633.57 | G26: Grant funds claimed this period: | H26: =H22 -> 0 | L26: Percent of total disbursed
C27: Project Income to date: | D27: =SUM(F22,I22) -> 0 | F27: Advance Disbursement Balance | H27: =N22-D26 -> 1903937.12 | L27: funds expended to date: | N27: =D26/N22 -> 0.2032304681
D31: Expenditure Descriptions - Units / $ Amounts | L31: Comments
A32: Salaries & Benefits | B32: Grant Funds | C32: =H15 -> 0
B33: Project Income | C33: =I15 -> 0
A34: Services & Supplies | B34: Grant Funds | C34: =H16 -> 0
B35: Project Income | C35: =I16 -> 0
A36: Professional Services or Public Agency Subcontracts | B36: Grant Funds | C36: =H17 -> 0
B37: Project Income | C37: =I17 -> 0
A38: NGO Subcontracts | B38: Grant Funds | C38: =H18 -> 0
B39: Project Income | C39: =I18 -> 0
A40: Equipment / Fixed Assets | B40: Grant Funds | C40: =H19 -> 0
B41: Project Income | C41: =I19 -> 0
A42: Other | B42: Grant Funds | C42: =H20 -> 0
B43: Project Income | C43: =I20 -> 0
A44: Indirect Costs | B44: Grant Funds | C44: =H21 -> 0
B45: Project Income | C45: =I21 -> 0
A46: Project Income | C46: =I24 -> 0
A47: PERSON PREPARING REPORT | E47: AUTHORIZED FINANCIAL OFFICER | L47: BSCC Supplier Data - Internal Use Only
E48: By checking the box below, I hereby certify that I am the authorized financial officer of the herein named agency. I further certify that I have not violated any of the provisions of Section 1090 of the Government Code in incurring the expenditures reported in this invoice, nor in any other way; that Sections 1090 through 1096 of the Government Code will not be violated in any way in the expenditure of funds pursuant to this invoice; that statement of funds above is true, correct, and in accordance with program provisions in all respects; and that all expenditures submitted after the expiration date of this contract are for the purpose of substantiating obligations legally incurred during the contract period. Furthermore, by submitting this invoice, I acknowledge that it must adhere to all of the requirements in the BSCC Grant Administration Guide, including any updates to the Guide during the term of the grant agreement.
L49: 00000014996
A50: Name, Title | L50: Supplier ID
L51: COUNTYOFFR-006
A52: Phone | L52: Supplier Name
L53: 2281 Tulare Street, Room 304
A54: Email | L54: Address Line 1
L55: Fresno, CA 93721
A56: Date | L56: Address Line 2
E59: Name, Title
E61: Phone
E63: Date
F64: Please initial here to certify the submission of this invoice.
A66: BSCC USE ONLY
A67: Date Received: | G67: Approved By:
I68: BSCC Field Representative, Date

Sheet INVOICE 12
A1: STATE OF CALIFORNIA | L1: Purchase Authority | N1: ='INVOICE 1'!N1 -> BSCC 5227
A2: BOARD OF STATE AND COMMUNITY CORRECTIONS | L2: Purchase Order: | N2: ='INVOICE 1'!N2 -> 5227-0000003918
A3: Financial Invoice Form: BSCC 201 (Revised 01/2023)
A5: Program: | B5: ='INVOICE 1'!B5 -> Public Defense Pilot Program | K5: Please Note: The California State Controller's Office will send all checks directly to the address listed in the "BSCC Vendor Data" section at the bottom of this invoice.
A7: Grantee: | B7: ='INVOICE 1'!B7 -> County of Fresno | F7: Project Title:
A9: Contract #: | B9: ='INVOICE 1'!B9 -> BSCC 323-21 | D9: Term: | E9: ='INVOICE 1'!E9 -> 2022-03-01 | F9: TO | G9: ='INVOICE 1'!G9 -> 2025-03-01 | L9: Invoicing Frequency | M9: Quarterly
A11: Invoice #: | B11: 12 PDPP 21 | D11: Reporting Period: | E11: 2025-01-02 | F11: TO | G11: 2025-03-01 | H11: Due: | I11: 2025-04-16 | L11: Final Invoice (Y/N): | M11: Yes
A13: Line Items | B13: Budget | E13: Prior Expenditures | H13: This Reporting Period | K13: Balance | N13: Advance Disbursements
B14: Grant Funds | C14: Project Income | D14: TOTAL | E14: Grant Funds | F14: Project Income | G14: TOTAL | H14: Grant Funds | I14: Project Income | J14: TOTAL | K14: Grant Funds | L14: Project Income | M14: TOTAL
A15: Salaries & Benefits | B15: ='INVOICE 11'!B15 -> 1783953 | C15: ='INVOICE 11'!C15 -> 0 | D15: =SUM(B15:C15) -> 1783953 | E15: =SUM('INVOICE 11'!E15,'INVOICE 11'!H15) -> 372686 | F15: =SUM('INVOICE 11'!F15,'INVOICE 11'!I15) -> 0 | G15: =SUM(E15:F15) -> 372686 | H15: 0 | I15: 0 | J15: =SUM(H15:I15) -> 0 | K15: =B15-E15-H15 -> 1411267 | L15: 0 | M15: =SUM(K15:L15) -> 1411267 | N15: 1st Advance 5/23/2022
A16: Services & Supplies | B16: ='INVOICE 11'!B16 -> 21723.38 | C16: ='INVOICE 11'!C16 -> 0 | D16: 21723.38 | E16: =SUM('INVOICE 11'!E16,'INVOICE 11'!H16) -> 6729 | F16: =SUM('INVOICE 11'!F16,'INVOICE 11'!I16) -> 0 | G16: =SUM(E16:F16) -> 6729 | H16: 0 | I16: 0 | J16: 0 | K16: 14994.38 | L16: 0 | M16: 14994.38 | N16: ='1st Advance Payment'!K20 -> 1204165
A17: Professional Services or Public Agency Subcontract | B17: ='INVOICE 11'!B17 -> 277838.97 | C17: ='INVOICE 11'!C17 -> 0 | D17: 277838.97 | E17: =SUM('INVOICE 11'!E17,'INVOICE 11'!H17) -> 67912.57 | F17: =SUM('INVOICE 11'!F17,'INVOICE 11'!I17) -> 0 | G17: =SUM(E17:F17) -> 67912.57 | H17: 0 | I17: 0 | J17: 0 | K17: 209926.4 | L17: 0 | M17: 209926.4 | N17: ='INVOICE 5'!N17 -> 2nd Advance [enter date]
A18: NGO Subcontracts | B18: ='INVOICE 11'!B18 -> 0 | C18: ='INVOICE 11'!C18 -> 0 | D18: 0 | E18: =SUM('INVOICE 11'!E18,'INVOICE 11'!H18) -> 0 | F18: =SUM('INVOICE 11'!F18,'INVOICE 11'!I18) -> 0 | G18: 0 | H18: 0 | I18: 0 | J18: 0 | K18: 0 | L18: 0 | M18: 0 | N18: 1185405.69
A19: Equipment / Fixed Assets | B19: ='INVOICE 11'!B19 -> 0 | C19: ='INVOICE 11'!C19 -> 0 | D19: 0 | E19: =SUM('INVOICE 11'!E19,'INVOICE 11'!H19) -> 0 | F19: =SUM('INVOICE 11'!F19,'INVOICE 11'!I19) -> 0 | G19: 0 | H19: 0 | I19: 0 | J19: 0 | K19: 0 | L19: 0 | M19: 0 | N19: ='INVOICE 9'!N19 -> 3rd Advance [enter date}
A20: Other | B20: ='INVOICE 11'!B20 -> 10345 | C20: ='INVOICE 11'!C20 -> 0 | D20: =SUM(B20:C20) -> 10345 | E20: =SUM('INVOICE 11'!E20,'INVOICE 11'!H20) -> 365 | F20: =SUM('INVOICE 11'!F20,'INVOICE 11'!I20) -> 0 | G20: 365 | H20: 0 | I20: 0 | J20: 0 | K20: 9980 | L20: 0 | M20: 9980 | N20: ='INVOICE 9'!N20 -> 0
A21: Indirect Costs | B21: ='INVOICE 11'!B21 -> 295710.34 | C21: ='INVOICE 11'!C21 -> 0 | D21: 295710.34 | E21: =SUM('INVOICE 11'!E21,'INVOICE 11'!H21) -> 37941 | F21: =SUM('INVOICE 11'!F21,'INVOICE 11'!I21) -> 0 | G21: 37941 | H21: 0 | I21: 0 | J21: 0 | K21: 257769.34 | L21: 0 | M21: 257769.34
A22: TOTAL | B22: =SUM(B15:B21) -> 2389570.69 | C22: =SUM(C15:C21) -> 0 | D22: =SUM(D15:D21) -> 2389570.69 | E22: =SUM(E15:E21) -> 485633.57 | F22: 0 | G22: 485633.57 | H22: 0 | I22: =SUM(I15:I21) -> 0 | J22: 0 | K22: 1903937.12 | L22: 0 | M22: 1903937.12 | N22: =SUM(N16+N18+N20) -> 2389570.69
A24: Project Income | C24: Income reported to date | D24: ='INVOICE 1'!D24+'INVOICE 1'!I24 -> 0 | F24: Prior allocated income | G24: ='INVOICE 1'!I24 -> 0 | H24: This Period | I24: 0 | L24: Unallocated income balance | M24: =D24-G24 -> 0
C26: Grant funds expended to date: | D26: =SUM(E22,H22) -> 485633.57 | G26: Grant funds claimed this period: | H26: =H22 -> 0 | L26: Percent of total disbursed
C27: Project Income to date: | D27: =SUM(F22,I22) -> 0 | F27: Advance Disbursement Balance | H27: =N22-D26 -> 1903937.12 | L27: funds expended to date: | N27: =D26/N22 -> 0.2032304681
D31: Expenditure Descriptions - Units / $ Amounts | L31: Comments
A32: Salaries & Benefits | B32: Grant Funds | C32: =H15 -> 0
B33: Project Income | C33: =I15 -> 0
A34: Services & Supplies | B34: Grant Funds | C34: =H16 -> 0
B35: Project Income | C35: =I16 -> 0
A36: Professional Services or Public Agency Subcontracts | B36: Grant Funds | C36: =H17 -> 0
B37: Project Income | C37: =I17 -> 0
A38: NGO Subcontracts | B38: Grant Funds | C38: =H18 -> 0
B39: Project Income | C39: =I18 -> 0
A40: Equipment / Fixed Assets | B40: Grant Funds | C40: =H19 -> 0
B41: Project Income | C41: =I19 -> 0
A42: Other | B42: Grant Funds | C42: =H20 -> 0
B43: Project Income | C43: =I20 -> 0
A44: Indirect Costs | B44: Grant Funds | C44: =H21 -> 0
B45: Project Income | C45: =I21 -> 0
A46: Project Income | C46: =I24 -> 0
A47: PERSON PREPARING REPORT | E47: AUTHORIZED FINANCIAL OFFICER | L47: BSCC Supplier Data - Internal Use Only
E48: By checking the box below, I hereby certify that I am the authorized financial officer of the herein named agency. I further certify that I have not violated any of the provisions of Section 1090 of the Government Code in incurring the expenditures reported in this invoice, nor in any other way; that Sections 1090 through 1096 of the Government Code will not be violated in any way in the expenditure of funds pursuant to this invoice; that statement of funds above is true, correct, and in accordance with program provisions in all respects; and that all expenditures submitted after the expiration date of this contract are for the purpose of substantiating obligations legally incurred during the contract period. Furthermore, by submitting this invoice, I acknowledge that it must adhere to all of the requirements in the BSCC Grant Administration Guide, including any updates to the Guide during the term of the grant agreement.
L49: 00000014996
A50: Name, Title | L50: Supplier ID
L51: COUNTYOFFR-006
A52: Phone | L52: Supplier Name
L53: 2281 Tulare Street, Room 304
A54: Email | L54: Address Line 1
L55: Fresno, CA 93721
A56: Date | L56: Address Line 2
E59: Name, Title
E61: Phone
E63: Date
F64: Please initial here to certify the submission of this invoice.
A66: BSCC USE ONLY
A67: Date Received: | G67: Approved By:
I68: BSCC Field Representative, Date

Sheet MODIFICATION REQUEST
M1: STATE OF CALIFORNIA
A2: MODIFICATION REQUEST - (FORM BSCC 223.1 (Revised 1/23) | M2: BOARD OF STATE AND COMMUNITY CORRECTIONS
A5: Please mark an "X" in the green cell to indicate which type of budget modification you want to select.
B7: Line-Item Change | F7: Budget Modification | J7: Project Income Allocation
B8: Select this option if you are modifying narrative details within a line item (or line items) but not changing the budget. | F8: Select ths option if you are modifying line-item dollar amounts by moving funds from one line-item to another. | J8: Select this option if you are allocating earned project income.
A10: Important Note: You must provide a detailed justification for all modification requests. All modifications require BSCC Field Representative approval.
A12: Grantee: | B12: ='INVOICE 1'!B7 -> County of Fresno | I12: Grant Program: | J12: ='INVOICE 1'!B5 -> Public Defense Pilot Program
A14: Address | B14: 2281 Tulare Street, Room 304 | I14: Project Title | J14: ='INVOICE 1'!G7 -> 0
B16: Fresno, CA 93721
A18: Contract #: | B18: ='INVOICE 1'!B9 -> BSCC 323-21 | J18: Modification Request # | K18: 2
A20: Term: | B20: ='INVOICE 1'!E9 -> 2022-03-01 | C20: ='INVOICE 1'!F9 -> TO | D20: ='INVOICE 1'!G9 -> 2025-03-01 | J20: Effective on Invoice #
A22: Line Items | B22: Current Budget | E22: Available Budget | H22: Changes (+/-) | K22: Modified Budget
B23: Grant Funds | C23: Project Income | D23: TOTAL | E23: Grant Funds | F23: Project Income | G23: TOTAL | H23: Grant Funds | I23: Project Income | J23: TOTAL | K23: Grant Funds | L23: Project Income | M23: TOTAL
A24: Salaries & Benefits | B24: ='INVOICE 1'!B15 -> 959060 | C24: ='INVOICE 1'!C15 -> 0 | D24: =SUM(B24:C24) -> 959060 | E24: ='INVOICE 12'!K15 -> 1411267 | F24: ='INVOICE 12'!L15 -> 0 | G24: =SUM(E24:F24) -> 1411267 | H24: 0 | I24: 0 | J24: =SUM(H24:I24) -> 0 | K24: =SUM(B24,H24) -> 959060 | L24: =SUM(C24,I24) -> 0 | M24: =SUM(K24:L24) -> 959060
A25: Services & Supplies | B25: ='INVOICE 1'!B16 -> 17470.38 | C25: ='INVOICE 1'!C16 -> 0 | D25: 17470.38 | E25: ='INVOICE 12'!K16 -> 14994.38 | F25: ='INVOICE 12'!L16 -> 0 | G25: 14994.38 | H25: 0 | I25: 0 | J25: 0 | K25: 17470.38 | L25: 0 | M25: 17470.38
A26: Professional Services | B26: ='INVOICE 1'!B17 -> 126282.28 | C26: ='INVOICE 1'!C17 -> 0 | D26: 126282.28 | E26: ='INVOICE 12'!K17 -> 209926.4 | F26: ='INVOICE 12'!L17 -> 0 | G26: 209926.4 | H26: 0 | I26: 0 | J26: 0 | K26: 126282.28 | L26: 0 | M26: 126282.28
A27: NGO Subcontracts | B27: ='INVOICE 1'!B18 -> 0 | C27: ='INVOICE 1'!C18 -> 0 | D27: 0 | E27: ='INVOICE 12'!K18 -> 0 | F27: ='INVOICE 12'!L18 -> 0 | G27: 0 | H27: 0 | I27: 0 | J27: 0 | K27: 0 | L27: 0 | M27: 0
A28: Equipment / Fixed Assets | B28: ='INVOICE 1'!B19 -> 0 | C28: ='INVOICE 1'!C19 -> 0 | D28: 0 | E28: ='INVOICE 12'!K19 -> 0 | F28: ='INVOICE 12'!L19 -> 0 | G28: 0 | H28: 0 | I28: 0 | J28: 0 | K28: 0 | L28: 0 | M28: 0
A29: Other | B29: ='INVOICE 1'!B20 -> 3200 | C29: ='INVOICE 1'!C20 -> 0 | D29: 3200 | E29: ='INVOICE 12'!K20 -> 9980 | F29: ='INVOICE 12'!L20 -> 0 | G29: 9980 | H29: 0 | I29: 0 | J29: 0 | K29: 3200 | L29: 0 | M29: 3200
A30: Indirect Costs | B30: ='INVOICE 1'!B21 -> 98152.34 | C30: ='INVOICE 1'!C21 -> 0 | D30: 98152.34 | E30: ='INVOICE 12'!K21 -> 257769.34 | F30: ='INVOICE 12'!L21 -> 0 | G30: 257769.34 | H30: 0 | I30: 0 | J30: 0 | K30: 98152.34 | L30: 0 | M30: 98152.34
A31: TOTAL | B31: =SUM(B24:B30) -> 1204165 | C31: 0 | D31: 1204165 | E31: 1903937.12 | F31: 0 | G31: 1903937.12 | H31: 0 | I31: 0 | J31: 0 | K31: 1204165 | L31: 0 | M31: 1204165
A33: Project Income | C33: Income reported to date | D33: 0 | F33: Prior allocated income | G33: 0 | H33: Allocating | I33: 0 | L33: Unallocated income balance | M33: =D33-I33 -> 0
A35: JUSTIFICATION FOR MODIFICATION (leave field blank if no changes to that line item)
A36: 1. Salaries & Benefits
A37: Grant Funds: | C37: Enter new narrative and justification for grant funds here...
A38: 2. Services & Supplies
A39: Grant Funds: | C39: Enter new narrative and justification for grant funds here...
A40: 3. Professional Services:
A41: Grant Funds: | C41: Enter new narrative and justification for grant funds here...
A42: 4. NGO Subcontracts:
A43: Grant Funds: | C43: Enter new narrative and justification for grant funds here...
A44: 5. Equipment / Fixed Assets:
A45: Grant Funds: | C45: Enter new narrative and justification for grant funds here...
A46: 6. Other:
A47: Grant Funds: | C47: Enter new narrative and justification for grant funds here...
A48: 7. Indirect Costs:
A49: Grant Funds: | C49: Enter new narrative and justification for grant funds here...
A51: PERSON PREPARING REPORT | I51: AUTHORIZED FINANCIAL OFFICER
I52: I hereby certify that I am the authorized financial officer of the herein named agency. I further certify that I have not violated any of the provisions of Section 1090 of the Government Code in incurring the expenditures reported in this invoice, nor in any other way; that Sections 1090 through 1096 of the Government Code will not be violated in any way in the expenditure of funds pursuant to this invoice; that statement of funds above is true, correct, and in accordance with program provisions in all respects; and that all expenditures submitted after the expiration date of this contract are for the purpose of substantiating obligations legally incurred during the contract period. Furthermore, by submitting this invoice, I acknowledge that it must adhere to all of the requirements in the BSCC Grant Administration Guide, including any updates to the Guide during the term of the grant agreement.
A54: Name, Title
A56: Phone
A58: Email
A60: Date
I63: Name, Title
I65: Phone
I67: Date
J68: Please initial here to certify the submissionthis budget modification.
A70: BSCC USE ONLY
A71: Date Received: | H71: Approved By: | L71: Date:
I72: BSCC Field Representative

Sheet Project Budget NARRATIVE
A2: 2020 Indigent Defense Grant Program - Project Budget and Budget Narrative
A3: Name of Applicant: | D3: ='[1]INVOICE 1'!B7 -> County of Fresno
A4: Contract Term: March 1, 2022 to March 1, 2025
A5: The total amount of funding each county is eligible to receive is provided on the Funding Allocation tab. Please request the full amount of funding next to your county name.
A6: Note: Rows 8-15 will auto-populate based on the information entered in the budget line items (Salaries and Benefits, Services and Supplies, etc.)
A7: Budget Line Item | F7: Total
A8: 1. Salaries and Benefits | F8: ='[1]INVOICE 1'!B15 -> 959060
A9: 2. Services and Supplies | F9: ='[1]INVOICE 1'!B16 -> 17470.38
A10: 3. Professional Services or Public Agency Subcontracts | F10: ='[1]INVOICE 1'!B17 -> 126282.28
A11: 4. Non-Governmental Organization (NGO) Subcontracts | F11: ='[1]INVOICE 1'!B18 -> 0
A12: 5. Equipment/Fixed Assets | F12: ='[1]INVOICE 1'!B19 -> 0
A13: 6. Project Evaluation | F13: ='[1]INVOICE 1'!B20 -> 0
A14: 7. Other (Travel, Training, etc.) | F14: ='[1]INVOICE 1'!B21 -> 3200
A15: 8. Indirect Costs | F15: ='[1]INVOICE 1'!B22 -> 98152.34
A16: TOTAL | F16: =SUM(F8:F15) -> 1204165
A18: 1a. Salaries and Benefits
A19: Name and Title | C19: (Show as either % FTE or Hourly Rate) & Benefits | F19: Total
A20: Defense Attorney III | C20: 100% FTE $112,762 + Benefits $89,792 | F20: 202554
A21: Defense Attorney IV | C21: 100% FTE $131,950 + Benefits $105,071 | F21: 237021
A22: Defense Attorney IV | C22: 100% FTE $131,950 + Benefits $105,071 | F22: 237021
A23: Paralegal III | C23: 100% FTE $46,488 + Benefits $37,018 | F23: 83506
A24: Defense Investigator II | C24: 100% FTE $60,190 + Benefits $47,929 | F24: 108119
A25: Social Worker III | C25: 100% FTE $50,570 + Benefits $40,269 | F25: 90839
F26: 0
F27: 0
F28: 0
F29: 0
A30: TOTAL | F30: =SUM(F20:F29) -> 959060
A32: 1b. Salaries and Benefits Narrative:
A33: The Public Defender will create a Post-Conviction team comprised of one immigration attorney, 2 re-sentencing attorneys, and 3 support staff. All attorneys would provide professional legal services requiring interaction with Public Defender clients and staff, the public, and other governmental agencies and members of the legal profession. The support staff would assist the re-sentencing attorneys with investigating mitigation evidence, researching client records, interviewing and locating witnesses, assisting mitigation experts, subpoena preparation, and preparing mitigation reports. These are all new positions being created to work solely on the Public Defense Pilot Program.
A34: Bud Mod #1 - The Public Defender requests to modify 1a. Salaries and Benefits Name and Title regarding the Defense Attorney positions. Previously the positions were budgeted for (2) Defense Attorney IV and (1) Defense Attorney III. After several months of active recruiting, the Public Defender was unable to hire any new employees and has reassigned existing staff into the grant positions. The existing attorneys with the requisite knowledge to best address the given statutes are (2) Senior Defense Attorney and (1) Defense Attorney III that is eligible for promotion to Defense Attorney IV in January 2023. We request a modification to the original budget to list 3 FTE Defense Attorneys, given that the budgeted amounts are unchanged. Due to the length of vacancies, additional funding is not needed to account for the higher salaries. Please make all requested modifications effective beginning on Invoice #1.
A35: 3/29/23 - Year 2 funds added ($824,893.00)
A36: 2a. Services and Supplies
A37: Description of Services or Supplies | C37: Calculation for Expenditure | F37: Total
A38: (6) Laptops + Accessories | C38: 6 x $2500 | F38: 15000
A39: 6) Case Management System Licenses | C39: 6 x $411.73 | F39: 2470.38
F40: 0
F41: 0
F42: 0
F43: 0
F44: 0
F45: 0
A46: TOTAL | F46: =SUM(F38:F45) -> 17470.38
A48: 2b. Services and Supplies Narrative:
A49: Each new employee will require a new workstation which includes a laptop and accessories, and a license for the department's case management system.
A50: 3/29/23 - Year 2 funds added ($4,253.00)
A51: 3a. Professional Services
A52: Description of Professional Service(s) | C52: Calculation for Expenditure | F52: Total
A53: Alternate Indigent Defense Services | C53: Services rendered on a per case basis not to exceed $126,282.28 | F53: 126282.28
F54: 0
F55: 0
F56: 0
F57: 0
F58: 0
F59: 0
F60: 0
A61: TOTAL | F61: =SUM(F53:F60) -> 126282.28
A63: 3b. Professional Services Narrative
A64: The County of Fresno currently contracts with a private defense firm for conflict cases and ancilliary/expert reimbursable services.
A65: 3/29/23 - Year 2 funds added ($151,556.69)
A66: 4a. Non-Governmental Organizations (NGO) Subcontracts
A67: Description of Subcontract | C67: Calculation for Expenditure | F67: Total
F68: 0
F69: 0
F70: 0
F71: 0
F72: 0
F73: 0
F74: 0
F75: 0
A76: TOTALS | F76: =SUM(F68:F75) -> 0
A78: 4b. Non-Governmental Organizations (NGO) Subcontracts Narrative
A79: Enter narrative here. You may expand cell height if needed.
A80: Enter Budget Mod narrative here. You may expand cell hight if needed.
A81: 5a. Equipment/Fixed Assets
A82: Description of Equipment/Fixed Asset | C82: Calculation for Expense | F82: Total
F83: 0
F84: 0
F85: 0
F86: 0
F87: 0
F88: 0
A89: TOTALS | F89: =SUM(F83:F88) -> 0
A91: 5b. Equipment/Fixed Assets Narrative
A92: Enter narrative here. You may expand cell height if needed.
A93: Enter Budget Mod narrative here. You may expand cell hight if needed.
A94: 6a. Project Evaluation
A95: Description | C95: Calculation for Expense | F95: Total
A96: Training stipends for employees | C96: 3 x $700; 2 x $500; 1 x $100 | F96: 3200
F97: 0
F98: 0
F99: 0
F100: 0
F101: 0
A102: TOTAL | F102: =SUM(F96:F101) -> 3200
A104: 6b. Project Evaluation Narrative
A105: Each Public Defender employee is allotted a stipend to use for MCLEs, training materials, and/or associated travel. Attorneys are allotted $700/year, Defense Investigators and Social Workers $500/year, and Paralegals $100/year.
A106: Enter Budget Mod narrative here. You may expand cell hight if needed.
A107: 7a. Other (Travel, Training, etc.)
A108: Description | C108: Calculation for Expense | F108: Total
F109: 0
F110: 0
F111: 0
F112: 0
F113: 0
F114: 0
A115: TOTAL | F115: =SUM(F109:F114) -> 0
A117: 7b. Other (Travel, Training, etc.) Narrative:
A118: Enter narrative here. You may expand cell height if needed.
A119: 3/29/23 - Year 2 funds added ($7,145.00)
A120: 8a. Indirect Costs
A121: Indirect costs may be charged to grant funds by choosing either Option 1) or 2) listed below: | F121: Total
A122: 1) Indirect costs will be charged as Grantee's federally approved Negotiated Indirect Cost Rate (NICR): Enter NICR Percentage and Amount: | E122: 0
A123: 2) Indirect costs will be charged as the Federal De Minimis (10% of Modified Total Direct Cost): | F123: 98152.34
A124: TOTAL | F124: =SUM(F122,F123) -> 98152.34
A126: 8b. Indirect Costs Narrative:
A127: Indirect Costs include administrative personnel hours, security, office supplies, facility operations, and utilities.
A128: 3/29/23 - Year 2 funds added ($197,558.00)
A129: Before submission, please verify that you have requested the full amount of funding your county is eligible to receive.

Sheet INVOICE DUE DATES
A1: Invoice # | B1: Reporting Period | C1: Due Date
A2: Invoice 1 | B2: March 1, 2022 to June 30, 2022 | C2: 2022-08-15
A3: Invoice 2 | B3: July 1, 2022 to September 30, 2022 | C3: 2022-11-15
A4: Invoice 3 | B4: October 1, 2022 to December 31, 2022 | C4: 2023-02-15
A5: Invoice 4 | B5: January 1, 2023 to March 31, 2023 | C5: 2023-05-15
A6: Invoice 5 | B6: April 1, 2023 to June 30, 2023 | C6: 2023-08-15
A7: Invoice 6 | B7: July 1, 2023 to September 30, 2023 | C7: 2023-11-15
A8: Invoice 7 | B8: October 1, 2023 to December 31, 2023 | C8: 2024-02-15
A9: Invoice 8 | B9: January 1, 2024 to March 31, 2024 | C9: 2024-05-15
A10: Invoice 9 | B10: April 1, 2024 to June 30, 2024 | C10: 2024-08-15
A11: Invoice 10 | B11: July 1, 2024 to September 30, 2024 | C11: 2024-11-15
A12: Invoice 11 | B12: October 1, 2024 to January 1, 2025 | C12: 2025-02-16
A13: Final Invoicing Periods
A14: Invoice 12* | B14: January 2, 2025 to March 1, 2025* | C14: 2025-04-16
A15: *Note: Only expenditures associated with completion of a Final Local Evaluation Report may be included on Invoice 12.

Sheet INSTRUCTIONS
A1: Invoice Workbook
A3: How to Locate the Invoice Workbook
A4: Invoice workbooks are located on the Board of State and Community Corrections (BSCC) website under the Corrections Planning and Grant Programs Division (CPGP) webpage: http://www.bscc.ca.gov/s_correctionsplanningandprograms/.
A6: On the CPGP webpage, locate the CPGP Quick Links and select Grantee Invoicing.
A8: Invoice Workbooks are located under the respective grantee program (e.g., California Violence Intervention and Prevention, Edward Byrne Memorial Justice Assistance Grant, Law Enforcement Assisted Diversion, Proposition 47, etc.).
A10: How to Save the Invoice Workbook
A11: Right click on the file and select Save Link as. This will navigate the grantee to their computer files. The grantee shall navigate to a folder where they would like to save their Invoice Workbook. Do not rename the file.
A13: The grantee should then exit the web browser and work directly from the saved file.
A15: Prior to each reporting period, it is the grantee’s responsibility to download and save the Invoice Workbook to their local computer. This will ensure the most current budget information is being used in the Invoice Workbook.
A17: Forms Included in the Invoice Workbook
A18: The Invoice Workbook is an Excel file arranged by worksheet tabs (located along the bottom). The tabs included in the Invoice workbook are listed below:
A19:  Invoice (Form BSCC 201) for each reporting period;
A20:  Advance Payment (Form BSCC 201) for each of three advance disbursements;
A21:  Modification Request (Form BSCC 223.1 Rev 4/20);
A22:  Project Budget Narrative
A23:  Invoice Due Dates
A24:  Instructions.
A26: Passwords and Formulas in the Invoice Workbook
A27: Each time the grantee opens the Invoice workbook, they will be prompted to enter a password. The password is the grant agreement number (e.g. 990-19, include the -, do not include BSCC).
A29: The Invoice Workbook has specific functions which require macros to be enabled. A macro is a series of commands, such as calculations, that are stored within the document for tasks performed repeatedly. In most cases, Excel will prompt the grantee to enable macros. When this prompt appears, select Enable Editing then Enable Content. Enabling macros for the Invoice Workbook will not compromise the security of the local system nor the security of the agency's network.
A32: Financial Invoice - Form BSCC 201
A34: How to Complete a Financial Invoice
A35: Each Financial Invoice has a separate workbook tab titled, INVOICE #. The Financial Invoice will allow grantees to enter data into the green-shaded fields; all other fields are locked.
A37: The following instructions are for the green-shaded fields the Invoice to be completed by the Grantee.
A39: THIS REPORTING PERIOD
A40: The grantee shall enter the line item expenditures and match contributions paid out during the reporting period.
A41: All expenditures should be rounded to the nearest whole dollar; do not enter decimals.
A42: If an amount entered into a cell is greater than the available balance, an Invalid Dollar error message will appear. If the error is typographical, select Retry and enter the correct amount. If the amount entered is correct, however greater than the available balance, select Cancel and submit a Budget Modification. See, Budget Modification details below.
A44: EXPENDITURE DESCRIPTION
A45: For each dollar amount entered as an expenditure, enter a brief but detailed description. Your expenditures should correlate to Project Budget Narrative, which is listed on its own tab along with approved modification requests.
A47: PERSON PREPARING REPORT
A48: The grantee will designate an individual to prepare invoices. The Authorized Financial Officer cannot prepare invoices.
A49: The individual who prepares invoices will provide their contact information and the date the invoice was prepared under the PERSON PREPARING REPORT section. Then, forward the Invoice Workbook to the Authorized Financial Officer for review and approval.
A51: AUTHORIZED FINANCIAL OFFICER
A52: The Authorized Financial Officer is the Financial Officer listed in the Grant Agreement, STD 213 and/or Grantee Contact Information Sheet, Form 227.
A53: The Authorized Financial Officer cannot be the Project Director or the individual preparing the invoice.
A54: The Authorized Financial Officer must review each line item expenditure and description. Then, approve the invoice by checking the certification box and providing their contact information and the date of approval.
A55: Once the invoice is approved, the Authorized Financial Officer shall email the Invoice Workbook to the any grant inbox: anygrant@bscc.ca.gov. The Authorized Financial Officer is the only authorized party to submit an Invoice Workbook to the BSCC.
A56: Approved Financial Invoice
A57: Once BSCC staff reviews and approves the Financial Invoice, an updated Invoice Workbook will be available on the BSCC website. All approved Financial Invoices will be locked from editing but will be viewable in the Invoice Workbook.
A59: Advance Payment Invoice – Form 201A
A61: How to Complete the Advance Payment Invoice
A62: Each Advance Payment Invoice has a separate workbook tab titled, # ADVANCE PAYMENT. The Advance Payment Invoice will allow grantees to enter data into the green shaded fields; all other fields are locked.
A63: To complete the Advance Payment form, grantees must complete the following:
A64:  Idenitfy the effective invoice
A65:  Idenitfy the person preparing the report
A66:  Complete the information and signature for the Authorized Financial Officer.
A67: Advance Disbursement Details
A68: Grantees will receive three advance payments throughout the life of the grant agreement. Each advance payment will be one-third of the total grant award.
A69: Eight percent of the total advance disbursement must be expended prior to requesting the next advance payment.
A70: Approved Advance Payment Invoice
A71: Once BSCC staff reviews and approves the Advance Payment Invoice, the updated Invoice Workbook will be emailed to the Authorized Financial Officer and the individual that prepared the report. All approved Advance Payment Invoices will be locked from editing but will be viewable in the Invoice Workbook.
A73: Modification Request - Form BSCC 223.1
A75: Modification Request Requirements
A76: It is the grantees responsibility to receive prior approval from the Field Representative for modifications to the budget or budget narrative. Once the Field Representative approves a modification to the budget or budget narrative, the grantee may complete and submit a Modification Request.
A77: The Modification Request Form allows the grantee to:  Make a change within a line-item change that modifies the grant project narrative, but does not change the total dollar amount of the line item.  Modify the budget by moving funds from one line item to another; or  Allocate earned project income
A79: The grantee must allow a minimum of 10 working days, for the modification form to be submitted and approved by the BSCC prior to completing the next invoice.
A81: How to Complete a Modification Request
A82: Grantees can access the Modification Request form by selecting the tab titled, MODIFICATION REQUEST. For the Modification Request form, grantees can enter data into the yellow-shaded fields; all other fields are locked. First, the grantee must select the purpose of the modification by checking the appropriate box in the yellow section at the top of the form.
A84: The following instructions are for the yellow-shaded fields in the Modification Request to be completed by the Grantee.
A86: Modification Request # and Effective on Invoice #
A87: The grantee shall identify the budget modification number by selecting the next number in sequential order (1 if it's the first) and then identify on which invoice the modification becomes effective.
A89: CHANGES (+/-) and JUSTIFICATION FOR MODIFIED BUDGET
A90: Line-item changes - Complete only the JUSTIFICATION FOR MODIFICATION section below the budget table. The justification must: list the affected line-item(s), detail how the original budget narrative has changed, and explain why the change is necessary. Line-item changes do not change the budget $$. Budget modifications - complete the CHANGES (+/-) section by using a + (plus symbol) followed by a whole dollar amount in the line item that is increasing and using a - (minus symbol) followed by a whole dollar amount in the line item that is decreasing. The TOTAL line must show zeros. In addition, complete the JUSTIFICATION FOR MODIFICATION section. The justification must: list the affected line-item(s), detail how the original budget narrative has changed, and explain why the change is necessary Project Income Allocation - use the Grant Funds column in the CHANGES (+/-) to show how the income will be allocated across line-items. In the Total Allocating box on the Project Income line copy the amount shown in the TOTAL line of Grant Funds column. In addition, complete the JUSTIFICATION FOR MODIFICATION section. The justification must: list the affected line-item(s) and provide narrative detail about how the project income will be used to advance program objectives. (See Grant Administration Guide, Section 13, Project and Other Income)
A92: PERSON PREPARING REPORT
A93: The grantee will designate an individual to prepare Modification Requests. The Authorized Financial Officer cannot prepare Modification Requests.
A94: The individual who prepares the request will provide their contact information and the date the modification was prepared under the PERSON PREPARING REPORT section. Then, forward the Invoice Workbook to the Authorized Financial Officer for review and approval.
A96: AUTHORIZED FINANCIAL OFFICER
A97: The Authorized Financial Officer is the Financial Officer listed in the Grant Agreement, STD 213 and/or Grantee Contact Information Sheet, Form 227.
A98: The Authorized Financial Officer cannot be the Project Director or the individual preparing the modification request.
A99: The Authorized Financial Officer must review each line item change, narrative change and justifications. Then, approve the modification request by checking the certification box and providing their contact information and the date of approval.
A100: Once the modification request is approved, the Authorized Financial Officer shall email the Invoice Workbook to the any grant inbox: anygrant@bscc.ca.gov. The Authorized Financial Officer is the only authorized party to submit it an Invoice Workbook to the BSCC.
A102: Approved Modification Request
A103: Once BSCC staff reviews and approves the Modification Request, the updated Invoice Workbook will be emailed to the Authorized Financial Officer and the individual who prepared the re quest. All approved modifications will be locked from editing but will be viewable in the Invoice Workbook.
